,Portfolio,Expense Area,Cost Centre,Expense Type,Account Code,Amount,Supplier Name,SupplierId,Pay Date,Transaction No.,,VAT No.,Co. Reg. No.,VAT No.,Voucher Type,�,Trans Date
INSERTED DETAIL,Environment and Public Realm,Street Cleansing,WSC00,Materials,0303,13.44,Arco Limited,100015,02/03/2017,10245423,TC,166911546,,166911546,PI,561.35,21/02/2017
INSERTED DETAIL,Environment and Public Realm,Domestic Waste Collection,WWC00,Materials,0303,13.44,Arco Limited,100015,02/03/2017,10245423,TC,166911546,,166911546,PI,561.35,21/02/2017
INSERTED DETAIL,Environment and Public Realm,General Administration,WAD00,Personal Protective Clothing,0340,1.30,Arco Limited,100015,02/03/2017,10245423,TC,166911546,,166911546,PI,561.35,21/02/2017
INSERTED DETAIL,Environment and Public Realm,WSU Depot,WDP00,Personal Protective Clothing,0340,420.21,Arco Limited,100015,02/03/2017,10245423,TC,166911546,,166911546,PI,561.35,21/02/2017
INSERTED DETAIL,Environment and Public Realm,Street Cleansing,WSC00,Personal Protective Clothing,0340,19.40,Arco Limited,100015,02/03/2017,10245423,TC,166911546,,166911546,PI,561.35,21/02/2017
INSERTED DETAIL,Environment and Public Realm,WSU Depot,WDP00,Personal Protective Clothing,0340,622.26,Arco Limited,100015,30/03/2017,10246613,TC,166911546,,166911546,PN,793.27,27/03/2017
INSERTED DETAIL,Environment and Public Realm,Domestic Waste Collection,WWC00,Personal Protective Clothing,0340,19.40,Arco Limited,100015,30/03/2017,10246613,TC,166911546,,166911546,PN,793.27,27/03/2017
INSERTED DETAIL,Environment and Public Realm,Trade Waste Collection,WWC01,Personal Protective Clothing,0340,19.40,Arco Limited,100015,30/03/2017,10246613,TC,166911546,,166911546,PN,793.27,27/03/2017
INSERTED DETAIL,Environment and Public Realm,Safety and Resilience,EPL00,New Equipment,0300,834.92,Arco Limited,100015,30/03/2017,10246772,TC,166911546,,166911546,PI,1001.9,29/03/2017
INSERTED DETAIL,Housing Revenue Account,Repairs and Maintenance - Void works,UMR09,R&M External Contractors,0100,2648.33,AWM Electrical Contractors Ltd,100051,02/03/2017,10245087,CS,661675907,7430696,661675907,PN,3178,13/02/2017
INSERTED DETAIL,Housing Revenue Account,Repairs and Maintenance - Void works,UMR09,R&M External Contractors,0100,1746.68,AWM Electrical Contractors Ltd,100051,02/03/2017,10245245,CS,661675907,7430696,661675907,PN,2096.02,15/02/2017
INSERTED DETAIL,Housing Revenue Account,Repairs and Maintenance - Void works,UMR09,R&M External Contractors,0100,1969.56,AWM Electrical Contractors Ltd,100051,02/03/2017,10245247,CS,661675907,7430696,661675907,PN,2363.47,15/02/2017
INSERTED DETAIL,Housing Revenue Account,Repairs and Maintenance - Void works,UMR09,R&M External Contractors,0100,899.06,AWM Electrical Contractors Ltd,100051,02/03/2017,10245248,CS,661675907,7430696,661675907,PN,1078.87,15/02/2017
INSERTED DETAIL,Housing Revenue Account,Electrical maintenance,UMR10,R&M External Contractors,0100,3953.58,AWM Electrical Contractors Ltd,100051,02/03/2017,10245475,CS,661675907,7430696,661675907,PN,4744.3,22/02/2017
INSERTED DETAIL,Housing Revenue Account,Gas Heating Systems,UMR01,R&M External Contractors,0100,34.06,AWM Electrical Contractors Ltd,100051,02/03/2017,10245716,CS,661675907,7430696,661675907,PN,880.46,01/03/2017
INSERTED DETAIL,Housing Revenue Account,Electrical maintenance,UMR10,R&M External Contractors,0100,494.20,AWM Electrical Contractors Ltd,100051,02/03/2017,10245716,CS,661675907,7430696,661675907,PN,880.46,01/03/2017
INSERTED DETAIL,Capital Housing Revenue Account,Disabled Adaptations,HCR01,Capital Contract Payments,5000,205.46,AWM Electrical Contractors Ltd,100051,02/03/2017,10245716,CS,661675907,7430696,661675907,PN,880.46,01/03/2017
INSERTED DETAIL,Housing Revenue Account,Electrical maintenance,UMR10,R&M External Contractors,0100,894.06,AWM Electrical Contractors Ltd,100051,02/03/2017,10245718,CS,661675907,7430696,661675907,PN,1072.88,01/03/2017
INSERTED DETAIL,Housing Revenue Account,Repairs and Maintenance - Void works,UMR09,R&M External Contractors,0100,1719.82,AWM Electrical Contractors Ltd,100051,09/03/2017,10245719,CS,661675907,7430696,661675907,PN,2063.78,01/03/2017
INSERTED DETAIL,Housing Revenue Account,Repairs and Maintenance - Void works,UMR09,R&M External Contractors,0100,440.55,AWM Electrical Contractors Ltd,100051,09/03/2017,10245720,CS,661675907,7430696,661675907,PN,528.66,01/03/2017
INSERTED DETAIL,Housing Revenue Account,Gas Heating Systems,UMR01,R&M External Contractors,0100,45.97,AWM Electrical Contractors Ltd,100051,02/03/2017,10245721,CS,661675907,7430696,661675907,PN,1696.81,01/03/2017
INSERTED DETAIL,Housing Revenue Account,Electrical Inspections,UMR04,R&M External Contractors,0100,602.00,AWM Electrical Contractors Ltd,100051,02/03/2017,10245721,CS,661675907,7430696,661675907,PN,1696.81,01/03/2017
INSERTED DETAIL,Housing Revenue Account,Electrical maintenance,UMR10,R&M External Contractors,0100,766.04,AWM Electrical Contractors Ltd,100051,02/03/2017,10245721,CS,661675907,7430696,661675907,PN,1696.81,01/03/2017
INSERTED DETAIL,Housing Revenue Account,Repairs and Maintenance - Void works,UMR09,R&M External Contractors,0100,670.71,AWM Electrical Contractors Ltd,100051,09/03/2017,10245722,CS,661675907,7430696,661675907,PN,804.85,01/03/2017
INSERTED DETAIL,Housing Revenue Account,Repairs and Maintenance - Void works,UMR09,R&M External Contractors,0100,654.91,AWM Electrical Contractors Ltd,100051,09/03/2017,10245866,CS,661675907,7430696,661675907,PN,785.89,06/03/2017
INSERTED DETAIL,Housing Revenue Account,Electrical Inspections,UMR04,R&M External Contractors,0100,882.00,AWM Electrical Contractors Ltd,100051,09/03/2017,10245898,CS,661675907,7430696,661675907,PN,4903.9,06/03/2017
INSERTED DETAIL,Housing Revenue Account,Electrical maintenance,UMR10,R&M External Contractors,0100,3176.60,AWM Electrical Contractors Ltd,100051,09/03/2017,10245898,CS,661675907,7430696,661675907,PN,4903.9,06/03/2017
INSERTED DETAIL,Housing Revenue Account,Miscellaneous Unplanned Maintenance and Repair,UMR17,R&M External Contractors,0100,27.98,AWM Electrical Contractors Ltd,100051,09/03/2017,10245898,CS,661675907,7430696,661675907,PN,4903.9,06/03/2017
INSERTED DETAIL,Housing Revenue Account,Repairs and Maintenance - Void works,UMR09,R&M External Contractors,0100,484.87,AWM Electrical Contractors Ltd,100051,09/03/2017,10245923,CS,661675907,7430696,661675907,PN,581.84,06/03/2017
INSERTED DETAIL,Housing Revenue Account,Repairs and Maintenance - Void works,UMR09,R&M External Contractors,0100,868.24,AWM Electrical Contractors Ltd,100051,09/03/2017,10245996,CS,661675907,7430696,661675907,PN,1041.89,08/03/2017
INSERTED DETAIL,Housing Revenue Account,Electrical maintenance,UMR10,R&M External Contractors,0100,654.45,AWM Electrical Contractors Ltd,100051,16/03/2017,10246184,CS,661675907,7430696,661675907,PN,785.34,14/03/2017
INSERTED DETAIL,Housing Revenue Account,Repairs and Maintenance - Void works,UMR09,R&M External Contractors,0100,2789.95,AWM Electrical Contractors Ltd,100051,16/03/2017,10246185,CS,661675907,7430696,661675907,PN,3347.95,14/03/2017
INSERTED DETAIL,Housing Revenue Account,Electrical maintenance,UMR10,R&M External Contractors,0100,461.35,AWM Electrical Contractors Ltd,100051,16/03/2017,10246186,CS,661675907,7430696,661675907,PN,553.62,14/03/2017
INSERTED DETAIL,Communities and Homes,Woodside Park,TVR00,R&M External Contractors,0100,97.46,AWM Electrical Contractors Ltd,100051,23/03/2017,10246277,CS,661675907,7430696,661675907,PN,1857.96,16/03/2017
INSERTED DETAIL,Housing Revenue Account,Electrical maintenance,UMR10,R&M External Contractors,0100,1450.84,AWM Electrical Contractors Ltd,100051,23/03/2017,10246277,CS,661675907,7430696,661675907,PN,1857.96,16/03/2017
INSERTED DETAIL,Housing Revenue Account,Repairs and Maintenance - Void works,UMR09,R&M External Contractors,0100,1011.33,AWM Electrical Contractors Ltd,100051,23/03/2017,10246278,CS,661675907,7430696,661675907,PN,1213.6,16/03/2017
INSERTED DETAIL,Housing Revenue Account,Repairs and Maintenance - Void works,UMR09,R&M External Contractors,0100,617.39,AWM Electrical Contractors Ltd,100051,30/03/2017,10246488,CS,661675907,7430696,661675907,PN,832.79,22/03/2017
INSERTED DETAIL,Capital Housing Revenue Account,Purchase of Council Houses,PUR00,Capital Contract Payments,5000,76.60,AWM Electrical Contractors Ltd,100051,30/03/2017,10246488,CS,661675907,7430696,661675907,PN,832.79,22/03/2017
INSERTED DETAIL,Housing Revenue Account,Repairs and Maintenance - Void works,UMR09,R&M External Contractors,0100,2180.00,AWM Electrical Contractors Ltd,100051,23/03/2017,10246489,CS,661675907,7430696,661675907,PN,2616,22/03/2017
INSERTED DETAIL,Housing Revenue Account,Repairs and Maintenance - Void works,UMR09,R&M External Contractors,0100,2054.24,AWM Electrical Contractors Ltd,100051,30/03/2017,10246587,CS,661675907,7430696,661675907,PN,2465.09,24/03/2017
INSERTED DETAIL,Housing Revenue Account,Electrical Inspections,UMR04,R&M External Contractors,0100,700.00,AWM Electrical Contractors Ltd,100051,30/03/2017,10246797,CS,661675907,7430696,661675907,PN,1144.03,30/03/2017
INSERTED DETAIL,Housing Revenue Account,Electrical maintenance,UMR10,R&M External Contractors,0100,253.36,AWM Electrical Contractors Ltd,100051,30/03/2017,10246797,CS,661675907,7430696,661675907,PN,1144.03,30/03/2017
INSERTED DETAIL,Capital Housing Revenue Account,Kitchen Modifications,HIK10,Capital Contract Payments,5000,9856.00,A C E Carpentry & Joinery Contractors Ltd,100085,09/03/2017,10245933,CS,729422428,4120783,729422428,PN,11827.2,06/03/2017
INSERTED DETAIL,Capital Housing Revenue Account,Kitchen Modifications,HIK10,Capital Contract Payments,5000,1935.00,A C E Carpentry & Joinery Contractors Ltd,100085,09/03/2017,10246003,CS,729422428,4120783,729422428,PN,2322,08/03/2017
INSERTED DETAIL,Capital Housing Revenue Account,Kitchen Modifications,HIK10,Capital Contract Payments,5000,9856.00,A C E Carpentry & Joinery Contractors Ltd,100085,09/03/2017,10246004,CS,729422428,4120783,729422428,PN,11827.2,08/03/2017
INSERTED DETAIL,Capital Housing Revenue Account,Kitchen Modifications,HIK10,Capital Contract Payments,5000,2727.00,A C E Carpentry & Joinery Contractors Ltd,100085,09/03/2017,10246005,CS,729422428,4120783,729422428,PN,3272.4,08/03/2017
INSERTED DETAIL,Capital Housing Revenue Account,Kitchen Modifications,HIK10,Capital Contract Payments,5000,9856.00,A C E Carpentry & Joinery Contractors Ltd,100085,23/03/2017,10246407,CS,729422428,4120783,729422428,PN,11827.2,20/03/2017
INSERTED DETAIL,Communities and Homes,Central Business Support Services,CSS15,Periodicals,0356,1995.00,LGC T/A Emap Communications Ltd,100093,09/03/2017,10245977,TC,486400442,,486400442,PI,2215,07/03/2017
INSERTED DETAIL,Environment and Public Realm,Grounds Maintenance,WGM00,Materials,0303,1238.00,Banks Amenity Products Ltd,100133,23/03/2017,10246458,TC,119941257,690835,119941257,PI,1485.6,21/03/2017
INSERTED DETAIL,Corporate Resources,Council Tax and NNDR Collection,CTX01,External Legal Costs,0741,61.24,Bristow & Sutor,100159,23/03/2017,10246099,TC,294694111,,294694111,PN,556.45,10/03/2017
INSERTED DETAIL,Housing Revenue Account,Sheltered Housing,AGP00,Telephone Expenses,0371,3694.95,British Telecommunications Plc,100161,02/03/2017,10245271,TC,245719348,,245719348,PN,4642.89,16/02/2017
INSERTED DETAIL,Housing Revenue Account,Multi-Storey Flats,MSF00,Telephone Expenses,0371,75.31,British Telecommunications Plc,100161,02/03/2017,10245271,TC,245719348,,245719348,PN,4642.89,16/02/2017
INSERTED DETAIL,Communities and Homes,Broadband & internet,TEL01,Telephone Expenses,0371,98.82,British Telecommunications Plc,100161,02/03/2017,10245271,TC,245719348,,245719348,PN,4642.89,16/02/2017
INSERTED DETAIL,Environment and Public Realm,Crematorium,CRM00,Telephone Expenses,0371,1187.88,British Telecommunications Plc,100161,02/03/2017,10245357,TC,245719348,,245719348,PN,1425.46,20/02/2017
INSERTED DETAIL,Corporate Resources,Universal Credit,HBA20,Other Agencies,0734,1206.02,Benn Partnership Centre,100235,02/03/2017,10245582,TC,,,,PI,1206.02,27/02/2017
INSERTED DETAIL,Communities and Homes,CL Grants,CGS00,Grants To Voluntary Organisations,0720,2000.00,Benn Partnership Centre,100235,30/03/2017,10246592,TC,,,,PN,2000,24/03/2017
INSERTED DETAIL,Corporate Resources,Corporate Property R&M,CPA01,R&M External Contractors,0100,1108.30,Chillaire Service & Maintenance Ltd,100305,02/03/2017,10245201,TC,806802244,4622016,806802244,PN,1329.96,14/02/2017
INSERTED DETAIL,Corporate Resources,Corporate Property R&M,CPA01,R&M External Contractors,0100,1108.30,Chillaire Service & Maintenance Ltd,100305,02/03/2017,10245243,TC,806802244,4622016,806802244,PN,1329.96,15/02/2017
INSERTED DETAIL,Corporate Resources,Corporate Property R&M,CPA01,R&M External Contractors,0100,2990.00,Chillaire Service & Maintenance Ltd,100305,09/03/2017,10245818,TC,806802244,4622016,806802244,PN,3588,02/03/2017
INSERTED DETAIL,Executive Director Office,Electoral Registration,ERG00,Training fees,0011,1080.00,Coventry City Council,100320,09/03/2017,10245944,TC,GB273422763,,GB273422763,PN,1080,07/03/2017
INSERTED DETAIL,Corporate Resources,Financial Services,RES10,Training fees,0011,590.00,Cipfa Business Ltd,100341,09/03/2017,10245062,TC,627390725,2376684,627390725,PN,708,10/02/2017
INSERTED DETAIL,Corporate Resources,Financial Services,RES10,Conference & Seminar Fees,0401,449.00,Cipfa,100349,30/03/2017,10246789,TC,627390725,231060,627390725,PN,538.8,29/03/2017
INSERTED DETAIL,Capital Communities and Homes,ICT refresh programme - Infrastructure,CMP01,IT Capital Expenditure,5025,5007.00,Stone Computers,100390,23/03/2017,10246414,TC,747878857,2658501,747878857,PI,6008.4,20/03/2017
INSERTED DETAIL,Environment and Public Realm,Clinical Waste,REF04,External Contractor & Operator,0742,489.15,OCS Group UK Ltd t/a Cannon,100436,09/03/2017,10245683,TC,238034379,,238 0343 79,PI,586.98,28/02/2017
INSERTED DETAIL,Environment and Public Realm,Regulatory Services,REG00,Other Miscellaneous Expenses,0444,1500.00,Heart Of England Co-operative Society Ltd,100479,09/03/2017,10245895,TC,328078938,,328078938,PN,1800,06/03/2017
INSERTED DETAIL,Environment and Public Realm,Domestic Waste Collection,WWC00,Vehicle Repair and Maintenance,0200,694.68,Dennis Eagle Ltd,100559,23/03/2017,10245958,TC,272496827,,272 4968 27,PI,833.62,07/03/2017
INSERTED DETAIL,Environment and Public Realm,Trade Waste Collection,WWC01,Vehicle Repair and Maintenance,0200,1250.86,Dennis Eagle Ltd,100559,30/03/2017,10246436,TC,272496827,,272 4968 27,PI,1501.03,21/03/2017
INSERTED DETAIL,Housing Revenue Account,Repairs and Maintenance - Void works,UMR09,R&M External Contractors,0100,443.67,Dulux Decorator Centres,100597,09/03/2017,10245995,TC,238458241,,238458241,PN,532.4,08/03/2017
INSERTED DETAIL,Housing Revenue Account,Lesley Souter House AP,AGP16,Gas,0131,1904.70,ESPO,100641,23/03/2017,10246236,TC,705180561,,705180561,PN,2285.64,15/03/2017
INSERTED DETAIL,Housing Revenue Account,Tanser Court AP,AGP17,Gas,0131,933.69,ESPO,100641,23/03/2017,10246237,TC,705180561,,705180561,PN,1120.43,15/03/2017
INSERTED DETAIL,Environment and Public Realm,WSU Depot,WDP00,Gas,0131,623.98,ESPO,100641,16/03/2017,10246245,TC,705180561,,705180561,PN,748.78,15/03/2017
INSERTED DETAIL,Environment and Public Realm,Crematorium,CRM00,Gas,0131,1171.36,ESPO,100641,23/03/2017,10246257,TC,705180561,,705180561,PN,1405.63,16/03/2017
INSERTED DETAIL,Corporate Resources,Corporate Property Central Utilities,CPA02,Gas,0131,1153.53,ESPO,100641,23/03/2017,10246263,TC,705180561,,705180561,PN,1384.24,16/03/2017
INSERTED DETAIL,Corporate Resources,Corporate Property Central Utilities,CPA02,Gas,0131,1663.49,ESPO,100641,23/03/2017,10246264,TC,705180561,,705180561,PN,1996.19,16/03/2017
INSERTED DETAIL,Housing Revenue Account,Albert Square AP,AGP20,Gas,0131,1303.04,ESPO,100641,23/03/2017,10246266,TC,705180561,,705180561,PN,1563.65,16/03/2017
INSERTED DETAIL,Housing Revenue Account,Repairs and Maintenance - Void works,UMR09,R&M External Contractors,0100,120.29,Nationwide Windows Ltd,100808,09/03/2017,10245875,CS,792405224,2025613,792405224,PN,11216.58,06/03/2017
INSERTED DETAIL,Housing Revenue Account,Miscellaneous Unplanned Maintenance and Repair,UMR17,R&M External Contractors,0100,1.00,Nationwide Windows Ltd,100808,09/03/2017,10245875,CS,792405224,2025613,792405224,PN,11216.58,06/03/2017
INSERTED DETAIL,Capital Housing Revenue Account,Housing Window Replacement,HWR00,Capital Contract Payments,5000,9225.86,Nationwide Windows Ltd,100808,09/03/2017,10245875,CS,792405224,2025613,792405224,PN,11216.58,06/03/2017
INSERTED DETAIL,Capital Housing Revenue Account,Housing Window Replacement,HWR00,Capital Contract Payments,5000,41766.01,Nationwide Windows Ltd,100808,09/03/2017,10245931,CS,792405224,2025613,792405224,PN,50119.21,06/03/2017
INSERTED DETAIL,Capital Housing Revenue Account,Housing Window Replacement,HWR00,Capital Contract Payments,5000,53024.17,Nationwide Windows Ltd,100808,09/03/2017,10246000,CS,792405224,2025613,792405224,PN,63629,08/03/2017
INSERTED DETAIL,Housing Revenue Account,Miscellaneous Unplanned Maintenance and Repair,UMR17,R&M External Contractors,0100,708.69,Nationwide Windows Ltd,100808,09/03/2017,10246001,CS,792405224,2025613,792405224,PN,120866.8,08/03/2017
INSERTED DETAIL,Capital Housing Revenue Account,Housing Window Replacement,HWR00,Capital Contract Payments,5000,100013.64,Nationwide Windows Ltd,100808,09/03/2017,10246001,CS,792405224,2025613,792405224,PN,120866.8,08/03/2017
INSERTED DETAIL,Capital Housing Revenue Account,Housing Window Replacement,HWR00,Capital Contract Payments,5000,43931.12,Nationwide Windows Ltd,100808,16/03/2017,10246192,CS,792405224,2025613,792405224,PN,52717.34,14/03/2017
INSERTED DETAIL,Capital Housing Revenue Account,Housing Window Replacement,HWR00,Capital Contract Payments,5000,51077.95,Nationwide Windows Ltd,100808,23/03/2017,10246284,CS,792405224,2025613,792405224,PN,61293.54,16/03/2017
INSERTED DETAIL,Capital Housing Revenue Account,Housing Window Replacement,HWR00,Capital Contract Payments,5000,26061.51,Nationwide Windows Ltd,100808,23/03/2017,10246379,CS,792405224,2025613,792405224,PN,31273.81,20/03/2017
INSERTED DETAIL,Capital Housing Revenue Account,Housing Window Replacement,HWR00,Capital Contract Payments,5000,55274.05,Nationwide Windows Ltd,100808,30/03/2017,10246677,CS,792405224,2025613,792405224,PN,66328.86,28/03/2017
INSERTED DETAIL,Capital Housing Revenue Account,Energy Efficiency Long Lawford External Cladding,HWI00,Capital Contract Payments,5000,600.00,Nationwide Windows Ltd,100808,30/03/2017,10246729,CS,792405224,2025613,792405224,PI,720,29/03/2017
INSERTED DETAIL,Environment and Public Realm,Domestic Waste Collection,WWC00,Vehicle Repair and Maintenance,0200,429.47,Ford & Slater,100817,09/03/2017,10245806,TC,565760807,,565 7608 07,PI,515.36,02/03/2017
INSERTED DETAIL,Environment and Public Realm,Domestic Waste Collection,WWC00,Vehicle Repair and Maintenance,0200,2090.91,Ford & Slater,100817,30/03/2017,10246293,TC,565760807,,565 7608 07,PI,2509.09,16/03/2017
INSERTED DETAIL,Environment and Public Realm,Domestic Waste Collection,WWC00,Vehicle Repair and Maintenance,0200,3138.15,Ford & Slater,100817,30/03/2017,10246415,TC,565760807,,565 7608 07,PI,3765.78,20/03/2017
INSERTED DETAIL,Environment and Public Realm,Domestic Waste Collection,WWC00,Vehicle Repair and Maintenance,0200,1279.32,Ford & Slater,100817,30/03/2017,10246702,TC,565760807,,565 7608 07,PN,1535.18,28/03/2017
INSERTED DETAIL,Environment and Public Realm,Domestic Waste Collection,WWC00,Vehicle Repair and Maintenance,0200,-1408.57,Ford & Slater,100817,30/03/2017,10246785,TC,565760807,,565 7608 07,PN,-1690.28,29/03/2017
INSERTED DETAIL,Corporate Resources,Town Hall,OFF00,Materials,0303,783.20,Greenham,100890,09/03/2017,10245622,TC,823820932,2902454,823820932,PI,939.84,27/02/2017
INSERTED DETAIL,Corporate Resources,Town Hall,OFF00,Materials,0303,723.95,Greenham,100890,30/03/2017,10246412,TC,823820932,2902454,823820932,PI,868.74,20/03/2017
INSERTED DETAIL,Environment and Public Realm,Parks,PKS00,Maintenance of Equipment,0301,437.91,Playdale Playgrounds Ltd,100919,30/03/2017,10246398,CS,155625362,525615,155 6253 62,PN,525.49,20/03/2017
INSERTED DETAIL,Corporate Resources,Corporate Property Management,CPM00,Asset Management Expenses,0448,1000.00,Godfrey-Payton Chartered Surveyors,100937,02/03/2017,10245447,TC,272440179,,272440179,PN,1200,22/02/2017
INSERTED DETAIL,Housing Revenue Account,Supervision and Management General,MAN00,Asset Management Expenses,0448,500.00,Godfrey-Payton Chartered Surveyors,100937,23/03/2017,10246319,TC,272440179,,272440179,PN,600,17/03/2017
INSERTED DETAIL,Growth and Investment,Visitor Centre,VSC00,Purchases for Resale,0305,466.30,Grays of Cambridge (Intl) Limited,100949,09/03/2017,10245962,TC,213436495,,213436495,PI,559.56,07/03/2017
INSERTED DETAIL,Growth and Investment,Visitor Centre,VSC00,Purchases for Resale,0305,1260.00,Grays of Cambridge (Intl) Limited,100949,16/03/2017,10246225,TC,213436495,,213436495,PI,1512,15/03/2017
INSERTED DETAIL,Corporate Resources,Human Resources Centralised Services,RES31,Recruitment Expenses,0012,785.00,TMP (UK) LTD,100972,02/03/2017,10245386,TC,872904502,,872904502,PI,942,20/02/2017
INSERTED DETAIL,Corporate Resources,Human Resources Centralised Services,RES31,Recruitment Expenses,0012,1098.52,TMP (UK) LTD,100972,02/03/2017,10245387,TC,872904502,,872904502,PI,1318.22,20/02/2017
INSERTED DETAIL,Corporate Resources,Human Resources Centralised Services,RES31,Recruitment Expenses,0012,785.00,TMP (UK) LTD,100972,02/03/2017,10245388,TC,872904502,,872904502,PI,942,20/02/2017
INSERTED DETAIL,Corporate Resources,Human Resources Centralised Services,RES31,Recruitment Expenses,0012,1165.00,TMP (UK) LTD,100972,02/03/2017,10245563,TC,872904502,,872904502,PI,1398,27/02/2017
INSERTED DETAIL,Corporate Resources,Human Resources Centralised Services,RES31,Recruitment Expenses,0012,440.07,TMP (UK) LTD,100972,16/03/2017,10246149,TC,872904502,,872904502,PI,528.08,13/03/2017
INSERTED DETAIL,Corporate Resources,Human Resources Centralised Services,RES31,Recruitment Expenses,0012,1705.00,TMP (UK) LTD,100972,16/03/2017,10246150,TC,872904502,,872904502,PI,2046,13/03/2017
INSERTED DETAIL,Corporate Resources,Corporate Property R&M,CPA01,R&M External Contractors,0100,514.10,ThyssenKrupp Elevator UK,100985,30/03/2017,10233461,TC,772726995,688790,772726995,PN,616.92,06/04/2016
INSERTED DETAIL,Environment and Public Realm,Domestic Waste Collection,WWC00,Vehicle Repair and Maintenance,0200,1950.00,H.L. Smith (Transmissions) Ltd,101096,16/03/2017,10246007,TC,100786885,,100 7868 85,PN,2340,08/03/2017
INSERTED DETAIL,Corporate Resources,Town Hall,OFF00,New Equipment,0300,420.00,IE Office Equipment Ltd,101114,02/03/2017,10245261,CS,661544339,,661544339,PI,504,15/02/2017
INSERTED DETAIL,Capital Corporate Resources,Corporate Property Enhancements,CPE00,Capital Contract Payments,5000,1100.00,IE Office Equipment Ltd,101114,09/03/2017,10245738,CS,661544339,,661544339,PI,1320,01/03/2017
INSERTED DETAIL,Capital Corporate Resources,Corporate Property Enhancements,CPE00,Capital Contract Payments,5000,11880.00,IE Office Equipment Ltd,101114,16/03/2017,10245980,CS,661544339,,661544339,PI,14256,07/03/2017
INSERTED DETAIL,Corporate Resources,Corporate Property R&M,CPA01,R&M External Contractors,0100,486.15,IE Office Equipment Ltd,101114,16/03/2017,10245981,CS,661544339,,661544339,PI,583.38,07/03/2017
INSERTED DETAIL,Corporate Resources,Corporate Property R&M,CPA01,R&M External Contractors,0100,778.67,IE Office Equipment Ltd,101114,30/03/2017,10246352,CS,661544339,,661544339,PI,934.4,20/03/2017
INSERTED DETAIL,Capital Corporate Resources,Corporate Property Enhancements,CPE00,Capital Contract Payments,5000,668.26,IE Office Equipment Ltd,101114,30/03/2017,10246519,CS,661544339,,661544339,PI,801.91,22/03/2017
INSERTED DETAIL,Housing Revenue Account,Estate Management,MAN22,Training fees,0011,1200.00,Chartered Institute Of Housing,101122,09/03/2017,10245991,TC,233845950,,233845950,PN,1200,08/03/2017
INSERTED DETAIL,Environment and Public Realm,Parks,PKS00,Maintenance of Equipment,0301,1297.59,Kompan Ltd,101199,30/03/2017,10245957,CS,382219257,1704623,382219257,PI,1557.1,07/03/2017
INSERTED DETAIL,Housing Revenue Account,Unplanned Maintenance and Repair,UMR00,External Contractor & Operator,0742,869.49,Clews Recycling Limited,101213,02/03/2017,10245474,TC,747316619,,747316619,PN,1043.39,22/02/2017
INSERTED DETAIL,Housing Revenue Account,Unplanned Maintenance and Repair,UMR00,External Contractor & Operator,0742,807.42,Clews Recycling Limited,101213,16/03/2017,10245751,TC,747316619,,747316619,PN,968.9,02/03/2017
INSERTED DETAIL,Housing Revenue Account,Unplanned Maintenance and Repair,UMR00,External Contractor & Operator,0742,698.02,Clews Recycling Limited,101213,16/03/2017,10246223,TC,747316619,,747316619,PN,837.62,15/03/2017
INSERTED DETAIL,Housing Revenue Account,Unplanned Maintenance and Repair,UMR00,External Contractor & Operator,0742,848.84,Clews Recycling Limited,101213,30/03/2017,10246486,TC,747316619,,747316619,PN,1018.61,22/03/2017
INSERTED DETAIL,Growth and Investment,Planning General/Income,PLN00,Consultancy Costs,0740,2193.75,LGS Ltd,101252,30/03/2017,10246540,TC,705778609,,705778609,PN,2632.5,23/03/2017
INSERTED DETAIL,Capital Housing Revenue Account,Kitchen Modifications,HIK10,Capital Contract Payments,5000,1373.72,M & J Engineers Ltd,101278,09/03/2017,10245749,TC,231780868,,231780868,PN,1648.46,01/03/2017
INSERTED DETAIL,Capital Communities and Homes,ICT Renewal Programme,CMP00,IT Capital Expenditure,5025,1203.68,Misco Computer Supplies  Ltd,101298,09/03/2017,10245562,TC,576749284,,576749284,PI,1444.42,27/02/2017
INSERTED DETAIL,Capital Communities and Homes,ICT Renewal Programme,CMP00,IT Capital Expenditure,5025,429.14,Misco Computer Supplies  Ltd,101298,09/03/2017,10245571,TC,576749284,,576749284,PI,514.97,27/02/2017
INSERTED DETAIL,Capital Communities and Homes,ICT Renewal Programme,CMP00,IT Capital Expenditure,5025,454.50,Misco Computer Supplies  Ltd,101298,09/03/2017,10245680,TC,576749284,,576749284,PI,545.4,28/02/2017
INSERTED DETAIL,Capital Communities and Homes,ICT Renewal Programme,CMP00,IT Capital Expenditure,5025,1856.80,Misco Computer Supplies  Ltd,101298,09/03/2017,10245846,TC,576749284,,576749284,PI,2228.16,03/03/2017
INSERTED DETAIL,Capital Communities and Homes,ICT Renewal Programme,CMP00,IT Capital Expenditure,5025,1728.14,Misco Computer Supplies  Ltd,101298,09/03/2017,10245892,TC,576749284,,576749284,PI,2073.77,06/03/2017
INSERTED DETAIL,Capital Communities and Homes,ICT Renewal Programme,CMP00,IT Capital Expenditure,5025,1079.76,Misco Computer Supplies  Ltd,101298,09/03/2017,10246031,TC,576749284,,576749284,PI,1295.71,08/03/2017
INSERTED DETAIL,Capital Communities and Homes,ICT Renewal Programme,CMP00,IT Capital Expenditure,5025,728.25,Misco Computer Supplies  Ltd,101298,16/03/2017,10246057,TC,576749284,,576749284,PI,873.9,09/03/2017
INSERTED DETAIL,Capital Communities and Homes,ICT Renewal Programme,CMP00,IT Capital Expenditure,5025,1239.78,Misco Computer Supplies  Ltd,101298,16/03/2017,10246058,TC,576749284,,576749284,PI,1487.74,09/03/2017
INSERTED DETAIL,Capital Communities and Homes,ICT Renewal Programme,CMP00,IT Capital Expenditure,5025,8157.72,Misco Computer Supplies  Ltd,101298,23/03/2017,10246157,TC,576749284,,576749284,PI,9789.26,13/03/2017
INSERTED DETAIL,Capital Communities and Homes,ICT Renewal Programme,CMP00,IT Capital Expenditure,5025,1503.28,Misco Computer Supplies  Ltd,101298,23/03/2017,10246304,TC,576749284,,576749284,PI,1803.94,16/03/2017
INSERTED DETAIL,Environment and Public Realm,Grounds Maintenance,WGM00,Materials,0303,457.20,Nomix Enviro Ltd,101369,02/03/2017,10244911,TC,364553148,,364553148,PI,548.64,07/02/2017
INSERTED DETAIL,Communities and Homes,Maintenance of Customer Services Systems,CIS21,Software Maintenance,0374,630.00,Ncc Services Limited,101374,23/03/2017,10246216,TC,732334556,2802141,732334556,PN,756,15/03/2017
INSERTED DETAIL,Communities and Homes,CL Grants,CGS00,Grants To Voluntary Organisations,0720,2000.00,New Bilton Community Association,101389,30/03/2017,10246593,TC,,,,PN,2000,24/03/2017
INSERTED DETAIL,Housing Revenue Account,Sheltered Housing,AGP00,Telephone Expenses,0371,246.88,EE Ltd t/a Orange Personal Communications,101404,16/03/2017,10246202,TC,529221751,,529221751,PN,4679.39,15/03/2017
INSERTED DETAIL,Housing Revenue Account,Control Centre (HRA),CCE00,Telephone Expenses,0371,15.58,EE Ltd t/a Orange Personal Communications,101404,16/03/2017,10246202,TC,529221751,,529221751,PN,4679.39,15/03/2017
INSERTED DETAIL,Environment and Public Realm,Crematorium,CRM00,Telephone Expenses,0371,11.75,EE Ltd t/a Orange Personal Communications,101404,16/03/2017,10246202,TC,529221751,,529221751,PN,4679.39,15/03/2017
INSERTED DETAIL,Housing Revenue Account,Supervision and Management General,MAN00,Telephone Expenses,0371,177.76,EE Ltd t/a Orange Personal Communications,101404,16/03/2017,10246202,TC,529221751,,529221751,PN,4679.39,15/03/2017
INSERTED DETAIL,Housing Revenue Account,Property Maintenance,MAN23,Telephone Expenses,0371,127.75,EE Ltd t/a Orange Personal Communications,101404,16/03/2017,10246202,TC,529221751,,529221751,PN,4679.39,15/03/2017
INSERTED DETAIL,Housing Revenue Account,Multi-Storey Flats,MSF00,Telephone Expenses,0371,11.75,EE Ltd t/a Orange Personal Communications,101404,16/03/2017,10246202,TC,529221751,,529221751,PN,4679.39,15/03/2017
INSERTED DETAIL,Communities and Homes,Mobile telephones,TEL03,Telephone Expenses,0371,2689.72,EE Ltd t/a Orange Personal Communications,101404,16/03/2017,10246202,TC,529221751,,529221751,PN,4679.39,15/03/2017
INSERTED DETAIL,Housing Revenue Account,Unplanned Maintenance and Repair,UMR00,Telephone Expenses,0371,636.70,EE Ltd t/a Orange Personal Communications,101404,16/03/2017,10246202,TC,529221751,,529221751,PN,4679.39,15/03/2017
INSERTED DETAIL,Housing Revenue Account,Repairs and Maintenance - Void works,UMR09,Telephone Expenses,0371,11.75,EE Ltd t/a Orange Personal Communications,101404,16/03/2017,10246202,TC,529221751,,529221751,PN,4679.39,15/03/2017
INSERTED DETAIL,Capital Communities and Homes,Disc. Grants Home Safety Surveys,GRA03,Capital Contract Payments,5000,17500.00,Orbit Group Limited,101414,09/03/2017,10245878,TC,418541357,,418541357,PN,17500,06/03/2017
INSERTED DETAIL,Corporate Resources,Council Tax and NNDR Collection,CTX01,Stationery Supplies,0350,590.86,Polycopy,101428,16/03/2017,10246056,TC,115912486,,115912486,PI,709.03,09/03/2017
INSERTED DETAIL,Corporate Resources,Council Tax and NNDR Collection,CTX01,Stationery Supplies,0350,434.28,Polycopy,101428,23/03/2017,10246158,TC,115912486,,115912486,PI,521.14,13/03/2017
INSERTED DETAIL,Corporate Resources,Council Tax and NNDR Collection,CTX01,Stationery Supplies,0350,437.00,Polycopy,101428,23/03/2017,10246413,TC,115912486,,115912486,PI,524.4,20/03/2017
INSERTED DETAIL,Communities and Homes,Central Business Support Services,CSS15,External Printing,0352,482.00,Polycopy,101428,30/03/2017,10246558,TC,115912486,,115912486,PI,578.4,23/03/2017
INSERTED DETAIL,Environment and Public Realm,Sewage Disposal Plant,SDP00,R&M External Contractors,0100,520.28,PJT Pumping Services,101438,23/03/2017,10246501,TC,618143943,,618143943,PN,624.34,22/03/2017
INSERTED DETAIL,Environment and Public Realm,Parks,PKS00,Maintenance of Equipment,0301,600.00,Post To Post Fencing,101490,16/03/2017,10246201,CS,7729350133,,7729350133,PI,1920,15/03/2017
INSERTED DETAIL,Environment and Public Realm,Parks,PKS00,External Contractor & Operator,0742,875.00,Post To Post Fencing,101490,16/03/2017,10246201,CS,7729350133,,7729350133,PI,1920,15/03/2017
INSERTED DETAIL,Environment and Public Realm,Section 106 Grounds Maintenance,PKS16,External Contractor & Operator,0742,125.00,Post To Post Fencing,101490,16/03/2017,10246201,CS,7729350133,,7729350133,PI,1920,15/03/2017
INSERTED DETAIL,Environment and Public Realm,Parks,PKS00,External Contractor & Operator,0742,1815.00,Post To Post Fencing,101490,23/03/2017,10246345,CS,7729350133,,7729350133,PI,2178,20/03/2017
INSERTED DETAIL,Environment and Public Realm,Parks,PKS00,External Contractor & Operator,0742,1400.00,Post To Post Fencing,101490,23/03/2017,10246403,CS,7729350133,,7729350133,PN,1680,20/03/2017
INSERTED DETAIL,Environment and Public Realm,Parks,PKS00,Maintenance of Equipment,0301,950.00,Post To Post Fencing,101490,30/03/2017,10246554,CS,7729350133,,7729350133,PI,1980,23/03/2017
INSERTED DETAIL,Environment and Public Realm,Parks,PKS00,External Contractor & Operator,0742,575.00,Post To Post Fencing,101490,30/03/2017,10246554,CS,7729350133,,7729350133,PI,1980,23/03/2017
INSERTED DETAIL,Environment and Public Realm,Section 106 Grounds Maintenance,PKS16,External Contractor & Operator,0742,125.00,Post To Post Fencing,101490,30/03/2017,10246554,CS,7729350133,,7729350133,PI,1980,23/03/2017
INSERTED DETAIL,Housing Revenue Account,Repairs and Maintenance - Void works,UMR09,R&M External Contractors,0100,395.00,Reeds Plumbing & Heating Contractors Ltd,101504,09/03/2017,10245349,CS,418584732,4468782,418 5847 32,PN,31008,20/02/2017
INSERTED DETAIL,Capital Housing Revenue Account,Kitchen Modifications,HIK10,Capital Contract Payments,5000,25445.00,Reeds Plumbing & Heating Contractors Ltd,101504,09/03/2017,10245349,CS,418584732,4468782,418 5847 32,PN,31008,20/02/2017
INSERTED DETAIL,Capital Housing Revenue Account,Disabled Adaptations,HCR01,Capital Contract Payments,5000,5975.00,Reeds Plumbing & Heating Contractors Ltd,101504,16/03/2017,10246194,CS,418584732,4468782,418 5847 32,PN,7170,14/03/2017
INSERTED DETAIL,Capital Housing Revenue Account,Disabled Adaptations,HCR01,Capital Contract Payments,5000,3550.00,Reeds Plumbing & Heating Contractors Ltd,101504,30/03/2017,10246596,CS,418584732,4468782,418 5847 32,PN,4818,24/03/2017
INSERTED DETAIL,Capital Housing Revenue Account,Purchase of Council Houses,PUR00,Capital Contract Payments,5000,465.00,Reeds Plumbing & Heating Contractors Ltd,101504,30/03/2017,10246596,CS,418584732,4468782,418 5847 32,PN,4818,24/03/2017
INSERTED DETAIL,Environment and Public Realm,Garage,WVR00,Materials,0303,884.00,Rencar Services,101505,16/03/2017,10246156,TC,,,,PI,1060.8,13/03/2017
INSERTED DETAIL,Corporate Resources,Town Hall,OFF00,BIDS levy,0145,3016.38,Rugby Borough Council,101516,16/03/2017,10243120,NT,,,,PN,3016.38,13/12/2016
INSERTED DETAIL,Corporate Resources,Town Hall,OFF00,BIDS levy,0145,9024.36,Rugby Borough Council,101516,16/03/2017,10243121,NT,,,,PN,9024.36,13/12/2016
INSERTED DETAIL,Housing Revenue Account,Ashwood Court Supported Flats,MSF01,Council Tax,0142,728.45,Rugby Borough Council,101516,30/03/2017,10246473,NT,,,,PN,728.45,22/03/2017
INSERTED DETAIL,Housing Revenue Account,Ashwood Court Supported Flats,MSF01,Council Tax,0142,674.49,Rugby Borough Council,101516,30/03/2017,10246474,NT,,,,PN,674.49,22/03/2017
INSERTED DETAIL,Housing Revenue Account,Ashwood Court Supported Flats,MSF01,Council Tax,0142,728.45,Rugby Borough Council,101516,30/03/2017,10246476,NT,,,,PN,728.45,22/03/2017
INSERTED DETAIL,Housing Revenue Account,Ashwood Court Supported Flats,MSF01,Council Tax,0142,728.45,Rugby Borough Council,101516,30/03/2017,10246477,NT,,,,PN,728.45,22/03/2017
INSERTED DETAIL,Environment and Public Realm,Domestic Waste Collection,WWC00,Vehicle Repair and Maintenance,0200,565.00,Rugby Mobile Windscreens,101520,09/03/2017,10245639,TC,307407185,,307407185,PN,678,28/02/2017
INSERTED DETAIL,Environment and Public Realm,Domestic Waste Collection,WWC00,Vehicle Repair and Maintenance,0200,565.00,Rugby Mobile Windscreens,101520,16/03/2017,10245993,TC,307407185,,307407185,PN,678,08/03/2017
INSERTED DETAIL,Growth and Investment,Art Gallery and Museum,AGM00,Postage & Distribution,0370,79.56,Royal Mail,101554,02/03/2017,10244612,TC,,,,PN,2040.32,31/01/2017
INSERTED DETAIL,Growth and Investment,Building Control Services,BCS00,Postage & Distribution,0370,12.23,Royal Mail,101554,02/03/2017,10244612,TC,,,,PN,2040.32,31/01/2017
INSERTED DETAIL,Communities and Homes,Central Business Support Services,CSS15,Postage & Distribution,0370,339.17,Royal Mail,101554,02/03/2017,10244612,TC,,,,PN,2040.32,31/01/2017
INSERTED DETAIL,Corporate Resources,Council Tax and NNDR Collection,CTX01,Postage & Distribution,0370,471.32,Royal Mail,101554,02/03/2017,10244612,TC,,,,PN,2040.32,31/01/2017
INSERTED DETAIL,Executive Director Office,Electoral Registration,ERG00,Postage & Distribution,0370,79.55,Royal Mail,101554,02/03/2017,10244612,TC,,,,PN,2040.32,31/01/2017
INSERTED DETAIL,Corporate Resources,Housing Benefit Administration,HBA00,Postage & Distribution,0370,224.21,Royal Mail,101554,02/03/2017,10244612,TC,,,,PN,2040.32,31/01/2017
INSERTED DETAIL,Housing Revenue Account,Supervision and Management General,MAN00,Postage & Distribution,0370,75.26,Royal Mail,101554,02/03/2017,10244612,TC,,,,PN,2040.32,31/01/2017
INSERTED DETAIL,Growth and Investment,Planning General/Income,PLN00,Postage & Distribution,0370,100.73,Royal Mail,101554,02/03/2017,10244612,TC,,,,PN,2040.32,31/01/2017
INSERTED DETAIL,Housing Revenue Account,Unplanned Maintenance and Repair,UMR00,Postage & Distribution,0370,0.38,Royal Mail,101554,02/03/2017,10244612,TC,,,,PN,2040.32,31/01/2017
INSERTED DETAIL,Growth and Investment,Visitor Centre,VSC00,Postage & Distribution,0370,242.20,Royal Mail,101554,02/03/2017,10244612,TC,,,,PN,2040.32,31/01/2017
INSERTED DETAIL,Environment and Public Realm,General Administration,WAD00,Postage & Distribution,0370,75.66,Royal Mail,101554,02/03/2017,10244612,TC,,,,PN,2040.32,31/01/2017
INSERTED DETAIL,Growth and Investment,Building Control Services,BCS00,Postage & Distribution,0370,65.93,Royal Mail,101554,02/03/2017,10244884,TC,,,,PN,1510.11,07/02/2017
INSERTED DETAIL,Communities and Homes,Central Business Support Services,CSS15,Postage & Distribution,0370,372.80,Royal Mail,101554,02/03/2017,10244884,TC,,,,PN,1510.11,07/02/2017
INSERTED DETAIL,Corporate Resources,Council Tax and NNDR Collection,CTX01,Postage & Distribution,0370,345.92,Royal Mail,101554,02/03/2017,10244884,TC,,,,PN,1510.11,07/02/2017
INSERTED DETAIL,Executive Director Office,Electoral Registration,ERG00,Postage & Distribution,0370,12.90,Royal Mail,101554,02/03/2017,10244884,TC,,,,PN,1510.11,07/02/2017
INSERTED DETAIL,Corporate Resources,Housing Benefit Administration,HBA00,Postage & Distribution,0370,200.75,Royal Mail,101554,02/03/2017,10244884,TC,,,,PN,1510.11,07/02/2017
INSERTED DETAIL,Housing Revenue Account,Supervision and Management General,MAN00,Postage & Distribution,0370,71.20,Royal Mail,101554,02/03/2017,10244884,TC,,,,PN,1510.11,07/02/2017
INSERTED DETAIL,Growth and Investment,Planning General/Income,PLN00,Postage & Distribution,0370,176.36,Royal Mail,101554,02/03/2017,10244884,TC,,,,PN,1510.11,07/02/2017
INSERTED DETAIL,Housing Revenue Account,Unplanned Maintenance and Repair,UMR00,Postage & Distribution,0370,3.08,Royal Mail,101554,02/03/2017,10244884,TC,,,,PN,1510.11,07/02/2017
INSERTED DETAIL,Environment and Public Realm,General Administration,WAD00,Postage & Distribution,0370,11.24,Royal Mail,101554,02/03/2017,10244884,TC,,,,PN,1510.11,07/02/2017
INSERTED DETAIL,Growth and Investment,Art Gallery and Museum,AGM00,Postage & Distribution,0370,44.46,Royal Mail,101554,02/03/2017,10245146,TC,,,,PN,1705.73,13/02/2017
INSERTED DETAIL,Growth and Investment,Building Control Services,BCS00,Postage & Distribution,0370,2.08,Royal Mail,101554,02/03/2017,10245146,TC,,,,PN,1705.73,13/02/2017
INSERTED DETAIL,Communities and Homes,Central Business Support Services,CSS15,Postage & Distribution,0370,303.18,Royal Mail,101554,02/03/2017,10245146,TC,,,,PN,1705.73,13/02/2017
INSERTED DETAIL,Corporate Resources,Council Tax and NNDR Collection,CTX01,Postage & Distribution,0370,671.95,Royal Mail,101554,02/03/2017,10245146,TC,,,,PN,1705.73,13/02/2017
INSERTED DETAIL,Executive Director Office,Electoral Registration,ERG00,Postage & Distribution,0370,33.11,Royal Mail,101554,02/03/2017,10245146,TC,,,,PN,1705.73,13/02/2017
INSERTED DETAIL,Corporate Resources,Housing Benefit Administration,HBA00,Postage & Distribution,0370,172.21,Royal Mail,101554,02/03/2017,10245146,TC,,,,PN,1705.73,13/02/2017
INSERTED DETAIL,Housing Revenue Account,Supervision and Management General,MAN00,Postage & Distribution,0370,90.31,Royal Mail,101554,02/03/2017,10245146,TC,,,,PN,1705.73,13/02/2017
INSERTED DETAIL,Growth and Investment,Planning General/Income,PLN00,Postage & Distribution,0370,75.31,Royal Mail,101554,02/03/2017,10245146,TC,,,,PN,1705.73,13/02/2017
INSERTED DETAIL,Housing Revenue Account,Unplanned Maintenance and Repair,UMR00,Postage & Distribution,0370,1.08,Royal Mail,101554,02/03/2017,10245146,TC,,,,PN,1705.73,13/02/2017
INSERTED DETAIL,Growth and Investment,Visitor Centre,VSC00,Postage & Distribution,0370,6.74,Royal Mail,101554,02/03/2017,10245146,TC,,,,PN,1705.73,13/02/2017
INSERTED DETAIL,Environment and Public Realm,General Administration,WAD00,Postage & Distribution,0370,21.49,Royal Mail,101554,02/03/2017,10245146,TC,,,,PN,1705.73,13/02/2017
INSERTED DETAIL,Growth and Investment,Art Gallery and Museum,AGM00,Postage & Distribution,0370,3.11,Royal Mail,101554,02/03/2017,10245369,TC,,,,PN,1641.45,20/02/2017
INSERTED DETAIL,Growth and Investment,Building Control Services,BCS00,Postage & Distribution,0370,3.01,Royal Mail,101554,02/03/2017,10245369,TC,,,,PN,1641.45,20/02/2017
INSERTED DETAIL,Communities and Homes,Central Business Support Services,CSS15,Postage & Distribution,0370,560.83,Royal Mail,101554,02/03/2017,10245369,TC,,,,PN,1641.45,20/02/2017
INSERTED DETAIL,Corporate Resources,Council Tax and NNDR Collection,CTX01,Postage & Distribution,0370,241.02,Royal Mail,101554,02/03/2017,10245369,TC,,,,PN,1641.45,20/02/2017
INSERTED DETAIL,Executive Director Office,Electoral Registration,ERG00,Postage & Distribution,0370,18.34,Royal Mail,101554,02/03/2017,10245369,TC,,,,PN,1641.45,20/02/2017
INSERTED DETAIL,Corporate Resources,Housing Benefit Administration,HBA00,Postage & Distribution,0370,210.98,Royal Mail,101554,02/03/2017,10245369,TC,,,,PN,1641.45,20/02/2017
INSERTED DETAIL,Housing Revenue Account,Supervision and Management General,MAN00,Postage & Distribution,0370,126.73,Royal Mail,101554,02/03/2017,10245369,TC,,,,PN,1641.45,20/02/2017
INSERTED DETAIL,Growth and Investment,Planning General/Income,PLN00,Postage & Distribution,0370,100.63,Royal Mail,101554,02/03/2017,10245369,TC,,,,PN,1641.45,20/02/2017
INSERTED DETAIL,Housing Revenue Account,Unplanned Maintenance and Repair,UMR00,Postage & Distribution,0370,2.28,Royal Mail,101554,02/03/2017,10245369,TC,,,,PN,1641.45,20/02/2017
INSERTED DETAIL,Environment and Public Realm,General Administration,WAD00,Postage & Distribution,0370,100.95,Royal Mail,101554,02/03/2017,10245369,TC,,,,PN,1641.45,20/02/2017
INSERTED DETAIL,Growth and Investment,Art Gallery and Museum,AGM00,Postage & Distribution,0370,9.92,Royal Mail,101554,23/03/2017,10245642,TC,,,,PN,1998.9,28/02/2017
INSERTED DETAIL,Growth and Investment,Building Control Services,BCS00,Postage & Distribution,0370,2.37,Royal Mail,101554,23/03/2017,10245642,TC,,,,PN,1998.9,28/02/2017
INSERTED DETAIL,Communities and Homes,Central Business Support Services,CSS15,Postage & Distribution,0370,535.69,Royal Mail,101554,23/03/2017,10245642,TC,,,,PN,1998.9,28/02/2017
INSERTED DETAIL,Corporate Resources,Council Tax and NNDR Collection,CTX01,Postage & Distribution,0370,577.12,Royal Mail,101554,23/03/2017,10245642,TC,,,,PN,1998.9,28/02/2017
INSERTED DETAIL,Executive Director Office,Electoral Registration,ERG00,Postage & Distribution,0370,24.57,Royal Mail,101554,23/03/2017,10245642,TC,,,,PN,1998.9,28/02/2017
INSERTED DETAIL,Corporate Resources,Housing Benefit Administration,HBA00,Postage & Distribution,0370,254.42,Royal Mail,101554,23/03/2017,10245642,TC,,,,PN,1998.9,28/02/2017
INSERTED DETAIL,Housing Revenue Account,Supervision and Management General,MAN00,Postage & Distribution,0370,70.23,Royal Mail,101554,23/03/2017,10245642,TC,,,,PN,1998.9,28/02/2017
INSERTED DETAIL,Growth and Investment,Planning General/Income,PLN00,Postage & Distribution,0370,105.12,Royal Mail,101554,23/03/2017,10245642,TC,,,,PN,1998.9,28/02/2017
INSERTED DETAIL,Housing Revenue Account,Unplanned Maintenance and Repair,UMR00,Postage & Distribution,0370,1.90,Royal Mail,101554,23/03/2017,10245642,TC,,,,PN,1998.9,28/02/2017
INSERTED DETAIL,Growth and Investment,Visitor Centre,VSC00,Postage & Distribution,0370,5.94,Royal Mail,101554,23/03/2017,10245642,TC,,,,PN,1998.9,28/02/2017
INSERTED DETAIL,Environment and Public Realm,General Administration,WAD00,Postage & Distribution,0370,78.84,Royal Mail,101554,23/03/2017,10245642,TC,,,,PN,1998.9,28/02/2017
INSERTED DETAIL,Growth and Investment,Building Control Services,BCS00,Postage & Distribution,0370,7.39,Royal Mail,101554,23/03/2017,10245918,TC,,,,PN,3124.85,06/03/2017
INSERTED DETAIL,Communities and Homes,Central Business Support Services,CSS15,Postage & Distribution,0370,322.84,Royal Mail,101554,23/03/2017,10245918,TC,,,,PN,3124.85,06/03/2017
INSERTED DETAIL,Corporate Resources,Council Tax and NNDR Collection,CTX01,Postage & Distribution,0370,424.51,Royal Mail,101554,23/03/2017,10245918,TC,,,,PN,3124.85,06/03/2017
INSERTED DETAIL,Executive Director Office,Electoral Registration,ERG00,Postage & Distribution,0370,27.76,Royal Mail,101554,23/03/2017,10245918,TC,,,,PN,3124.85,06/03/2017
INSERTED DETAIL,Corporate Resources,Housing Benefit Administration,HBA00,Postage & Distribution,0370,190.23,Royal Mail,101554,23/03/2017,10245918,TC,,,,PN,3124.85,06/03/2017
INSERTED DETAIL,Housing Revenue Account,Supervision and Management General,MAN00,Postage & Distribution,0370,1458.37,Royal Mail,101554,23/03/2017,10245918,TC,,,,PN,3124.85,06/03/2017
INSERTED DETAIL,Growth and Investment,Planning General/Income,PLN00,Postage & Distribution,0370,128.53,Royal Mail,101554,23/03/2017,10245918,TC,,,,PN,3124.85,06/03/2017
INSERTED DETAIL,Housing Revenue Account,Unplanned Maintenance and Repair,UMR00,Postage & Distribution,0370,0.38,Royal Mail,101554,23/03/2017,10245918,TC,,,,PN,3124.85,06/03/2017
INSERTED DETAIL,Growth and Investment,Visitor Centre,VSC00,Postage & Distribution,0370,1.50,Royal Mail,101554,23/03/2017,10245918,TC,,,,PN,3124.85,06/03/2017
INSERTED DETAIL,Environment and Public Realm,General Administration,WAD00,Postage & Distribution,0370,43.01,Royal Mail,101554,23/03/2017,10245918,TC,,,,PN,3124.85,06/03/2017
INSERTED DETAIL,Growth and Investment,Art Gallery and Museum,AGM00,Postage & Distribution,0370,14.94,Royal Mail,101554,23/03/2017,10246276,TC,,,,PN,12879.62,16/03/2017
INSERTED DETAIL,Growth and Investment,Building Control Services,BCS00,Postage & Distribution,0370,1.34,Royal Mail,101554,23/03/2017,10246276,TC,,,,PN,12879.62,16/03/2017
INSERTED DETAIL,Communities and Homes,Central Business Support Services,CSS15,Postage & Distribution,0370,302.68,Royal Mail,101554,23/03/2017,10246276,TC,,,,PN,12879.62,16/03/2017
INSERTED DETAIL,Corporate Resources,Council Tax and NNDR Collection,CTX01,Postage & Distribution,0370,8220.34,Royal Mail,101554,23/03/2017,10246276,TC,,,,PN,12879.62,16/03/2017
INSERTED DETAIL,Executive Director Office,Electoral Registration,ERG00,Postage & Distribution,0370,14.02,Royal Mail,101554,23/03/2017,10246276,TC,,,,PN,12879.62,16/03/2017
INSERTED DETAIL,Corporate Resources,Housing Benefit Administration,HBA00,Postage & Distribution,0370,1888.46,Royal Mail,101554,23/03/2017,10246276,TC,,,,PN,12879.62,16/03/2017
INSERTED DETAIL,Housing Revenue Account,Supervision and Management General,MAN00,Postage & Distribution,0370,92.39,Royal Mail,101554,23/03/2017,10246276,TC,,,,PN,12879.62,16/03/2017
INSERTED DETAIL,Growth and Investment,Planning General/Income,PLN00,Postage & Distribution,0370,128.51,Royal Mail,101554,23/03/2017,10246276,TC,,,,PN,12879.62,16/03/2017
INSERTED DETAIL,Environment and Public Realm,Household Green Waste Collections,REF06,Postage & Distribution,0370,67.05,Royal Mail,101554,23/03/2017,10246276,TC,,,,PN,12879.62,16/03/2017
INSERTED DETAIL,Environment and Public Realm,General Administration,WAD00,Postage & Distribution,0370,4.82,Royal Mail,101554,23/03/2017,10246276,TC,,,,PN,12879.62,16/03/2017
INSERTED DETAIL,Growth and Investment,Art Gallery and Museum,AGM00,Postage & Distribution,0370,1.97,Royal Mail,101554,23/03/2017,10246405,TC,,,,PN,6257.16,20/03/2017
INSERTED DETAIL,Growth and Investment,Building Control Services,BCS00,Postage & Distribution,0370,3.40,Royal Mail,101554,23/03/2017,10246405,TC,,,,PN,6257.16,20/03/2017
INSERTED DETAIL,Communities and Homes,Central Business Support Services,CSS15,Postage & Distribution,0370,247.70,Royal Mail,101554,23/03/2017,10246405,TC,,,,PN,6257.16,20/03/2017
INSERTED DETAIL,Corporate Resources,Council Tax and NNDR Collection,CTX01,Postage & Distribution,0370,3323.54,Royal Mail,101554,23/03/2017,10246405,TC,,,,PN,6257.16,20/03/2017
INSERTED DETAIL,Executive Director Office,Electoral Registration,ERG00,Postage & Distribution,0370,180.07,Royal Mail,101554,23/03/2017,10246405,TC,,,,PN,6257.16,20/03/2017
INSERTED DETAIL,Corporate Resources,Housing Benefit Administration,HBA00,Postage & Distribution,0370,225.60,Royal Mail,101554,23/03/2017,10246405,TC,,,,PN,6257.16,20/03/2017
INSERTED DETAIL,Housing Revenue Account,Supervision and Management General,MAN00,Postage & Distribution,0370,139.00,Royal Mail,101554,23/03/2017,10246405,TC,,,,PN,6257.16,20/03/2017
INSERTED DETAIL,Growth and Investment,Planning General/Income,PLN00,Postage & Distribution,0370,135.74,Royal Mail,101554,23/03/2017,10246405,TC,,,,PN,6257.16,20/03/2017
INSERTED DETAIL,Environment and Public Realm,Household Green Waste Collections,REF06,Postage & Distribution,0370,943.76,Royal Mail,101554,23/03/2017,10246405,TC,,,,PN,6257.16,20/03/2017
INSERTED DETAIL,Growth and Investment,Visitor Centre,VSC00,Postage & Distribution,0370,1.22,Royal Mail,101554,23/03/2017,10246405,TC,,,,PN,6257.16,20/03/2017
INSERTED DETAIL,Environment and Public Realm,General Administration,WAD00,Postage & Distribution,0370,12.98,Royal Mail,101554,23/03/2017,10246405,TC,,,,PN,6257.16,20/03/2017
INSERTED DETAIL,Capital Environment and Public Realm,Open Spaces Refurbishment,LEI08,Capital Contract Payments,5000,867.40,Hags-smp Ltd,101562,23/03/2017,10246360,CS,GB207853851,908021,GB207853851,PN,1040.88,20/03/2017
INSERTED DETAIL,Corporate Resources,Corporate Property Central Utilities,CPA02,Water Services,0143,1115.56,Severn Trent Water Ltd,101610,02/03/2017,10245148,TC,,,,PN,1115.56,13/02/2017
INSERTED DETAIL,Housing Revenue Account,Multi-Storey Flats,MSF00,Water Services,0143,948.45,Severn Trent Water Ltd,101610,02/03/2017,10245526,TC,,,,PN,948.45,24/02/2017
INSERTED DETAIL,Housing Revenue Account,Dickinson Court AP,AGP03,Water Services,0143,590.58,Severn Trent Water Ltd,101610,02/03/2017,10245531,TC,,,,PN,590.58,24/02/2017
INSERTED DETAIL,Environment and Public Realm,WSU Depot,WDP00,Water Services,0143,770.84,Severn Trent Water Ltd,101610,09/03/2017,10245945,TC,,,,PN,770.84,07/03/2017
INSERTED DETAIL,Corporate Resources,Corporate Property Central Utilities,CPA02,Water Services,0143,810.20,Severn Trent Water Ltd,101610,09/03/2017,10245947,TC,,,,PN,810.2,07/03/2017
INSERTED DETAIL,Housing Revenue Account,Stretton Court AP,AGP13,Water Services,0143,726.05,Severn Trent Water Ltd,101610,09/03/2017,10245948,TC,,,,PN,726.05,07/03/2017
INSERTED DETAIL,Housing Revenue Account,Tanser Court AP,AGP17,Water Services,0143,979.00,Severn Trent Water Ltd,101610,09/03/2017,10245972,TC,,,,PN,979,07/03/2017
INSERTED DETAIL,Executive Director Office,County Elections,ELC03,Stationery Supplies,0350,1319.50,Shaw & Sons Ltd,101612,09/03/2017,10245886,TC,629353818,,629353818,PI,1583.4,06/03/2017
INSERTED DETAIL,Capital Housing Revenue Account,Disabled Adaptations,HCR01,Capital Contract Payments,5000,885.00,Stannah Stairlifts Ltd,101623,02/03/2017,10245455,TC,236778328,,236778328,PN,1062,22/02/2017
INSERTED DETAIL,Capital Housing Revenue Account,Disabled Adaptations,HCR01,Capital Contract Payments,5000,2722.00,Stannah Stairlifts Ltd,101623,23/03/2017,10246260,TC,236778328,,236778328,PN,3266.4,16/03/2017
INSERTED DETAIL,Capital Housing Revenue Account,Disabled Adaptations,HCR01,Capital Contract Payments,5000,1851.00,Stannah Stairlifts Ltd,101623,23/03/2017,10246261,TC,236778328,,236778328,PN,2221.2,16/03/2017
INSERTED DETAIL,Corporate Resources,Legal Services,DEM20,Ref. Books Journals & Magazines,0353,2529.30,Thomson Reuters,101632,23/03/2017,10245929,TC,198923209,1679046,198923209,PN,3035.16,06/03/2017
INSERTED DETAIL,Environment and Public Realm,Grounds Maintenance,WGM00,Tools,0304,677.48,Spaldings (UK) Limited,101634,02/03/2017,10245378,TC,389012442,,389 0124 42,PI,812.98,20/02/2017
INSERTED DETAIL,Capital Corporate Resources,Corporate Property Enhancements,CPE00,Capital Contract Payments,5000,4615.00,Steve Diston Contract Flooring,101668,09/03/2017,10245855,TC,565742025,,565 7420 25,PN,5538,06/03/2017
INSERTED DETAIL,Housing Revenue Account,Unplanned Maintenance and Repair,UMR00,Materials,0303,459.57,Travis Perkins Trading Co Ltd,101732,02/03/2017,10244559,TC,408556737,,408556737,PN,551.46,30/01/2017
INSERTED DETAIL,Environment and Public Realm,Street Cleansing,WSC00,Vehicle Running Costs,0201,312.90,HI-Q Motorway,101736,23/03/2017,10245732,TC,100159429,,100159429,PI,1510.9,01/03/2017
INSERTED DETAIL,Environment and Public Realm,Domestic Waste Collection,WWC00,Vehicle Running Costs,0201,946.18,HI-Q Motorway,101736,23/03/2017,10245732,TC,100159429,,100159429,PI,1510.9,01/03/2017
INSERTED DETAIL,Environment and Public Realm,Domestic Waste Collection,WWC00,Vehicle Running Costs,0201,694.56,HI-Q Motorway,101736,09/03/2017,10245733,TC,100159429,,100159429,PI,1724.54,01/03/2017
INSERTED DETAIL,Environment and Public Realm,Trade Waste Collection,WWC01,Vehicle Running Costs,0201,742.56,HI-Q Motorway,101736,09/03/2017,10245733,TC,100159429,,100159429,PI,1724.54,01/03/2017
INSERTED DETAIL,Environment and Public Realm,Trade Waste Collection,WWC01,Materials,0303,8874.02,Egbert H. Taylor & Co Ltd,101741,09/03/2017,10245668,TC,695267487,718441,695 2674 87,PI,14198.45,28/02/2017
INSERTED DETAIL,Capital Environment and Public Realm,Purchase of Waste Bins,PWB00,Capital Contract Payments,5000,2958.02,Egbert H. Taylor & Co Ltd,101741,09/03/2017,10245668,TC,695267487,718441,695 2674 87,PI,14198.45,28/02/2017
INSERTED DETAIL,Environment and Public Realm,Trade Waste Collection,WWC01,Materials,0303,7098.27,Egbert H. Taylor & Co Ltd,101741,09/03/2017,10245681,TC,695267487,718441,695 2674 87,PI,11357.23,28/02/2017
INSERTED DETAIL,Capital Environment and Public Realm,Purchase of Waste Bins,PWB00,Capital Contract Payments,5000,2366.09,Egbert H. Taylor & Co Ltd,101741,09/03/2017,10245681,TC,695267487,718441,695 2674 87,PI,11357.23,28/02/2017
INSERTED DETAIL,Environment and Public Realm,Domestic Waste Collection,WWC00,Materials,0303,885.10,Egbert H. Taylor & Co Ltd,101741,16/03/2017,10245961,TC,695267487,718441,695 2674 87,PI,2124.24,07/03/2017
INSERTED DETAIL,Environment and Public Realm,Trade Waste Collection,WWC01,Materials,0303,885.10,Egbert H. Taylor & Co Ltd,101741,16/03/2017,10245961,TC,695267487,718441,695 2674 87,PI,2124.24,07/03/2017
INSERTED DETAIL,Environment and Public Realm,TREE WORKS,WGM01,Materials,0303,560.60,Tudor Environmental,101743,02/03/2017,10244959,TC,181621322,8693251,181621322,PI,672.72,08/02/2017
INSERTED DETAIL,Environment and Public Realm,Domestic Waste Collection,WWC00,Vehicle Repair and Maintenance,0200,362.31,Terberg Matec UK,101761,23/03/2017,10246333,TC,560878510,,560 8785 10,PI,1328.36,17/03/2017
INSERTED DETAIL,Environment and Public Realm,Trade Waste Collection,WWC01,Vehicle Repair and Maintenance,0200,744.66,Terberg Matec UK,101761,23/03/2017,10246333,TC,560878510,,560 8785 10,PI,1328.36,17/03/2017
INSERTED DETAIL,Environment and Public Realm,Parks,PKS00,External Contractor & Operator,0742,3444.00,Warwickshire Wildlife Trust,101860,30/03/2017,10246635,TC,670318740,585247,670318740,PN,4132.8,27/03/2017
INSERTED DETAIL,Corporate Resources,Human Resources Centralised Services,RES31,Training fees,0011,1800.00,Warwickshire College,101882,02/03/2017,10245110,TC,585279590,,585 2795 90,PN,1800,13/02/2017
INSERTED DETAIL,Environment and Public Realm,Safety and Resilience,EPL00,Payments to Other Local Authorities,0710,2060.00,Warwickshire County Council,101893,09/03/2017,10245554,TC,272426659,,272426659,PI,2060,27/02/2017
INSERTED DETAIL,Growth and Investment,Art Gallery and Museum,AGM00,Building cleaning,0170,1084.44,Warwickshire County Council,101893,09/03/2017,10245894,TC,272426659,,272426659,PN,1301.33,06/03/2017
INSERTED DETAIL,Environment and Public Realm,Car Parks General,CPK01,Signage,0151,11722.39,Warwickshire County Council,101893,09/03/2017,10245974,TC,272426659,,272426659,PN,11722.39,07/03/2017
INSERTED DETAIL,Environment and Public Realm,Trade Waste Collection,WWC01,Removal of Waste - WCC,0711,93256.26,Warwickshire County Council,101893,23/03/2017,10245992,TC,272426659,,272426659,PN,108769.82,08/03/2017
INSERTED DETAIL,Growth and Investment,Art Gallery and Museum,AGM00,Building cleaning,0170,1084.44,Warwickshire County Council,101893,16/03/2017,10246094,TC,272426659,,272426659,PN,1301.33,10/03/2017
INSERTED DETAIL,Growth and Investment,Economic Development General,ECD00,Development Activities,0450,12000.00,Warwickshire County Council,101893,23/03/2017,10246213,TC,272426659,,272426659,PN,12000,15/03/2017
INSERTED DETAIL,Corporate Resources,Human Resources,RES30,External Legal Costs,0741,919.92,Warwickshire County Council,101893,23/03/2017,10246279,TC,272426659,,272426659,PN,1103.9,16/03/2017
INSERTED DETAIL,Growth and Investment,Planning General/Income,PLN00,Consultancy Costs,0740,487.50,Warwickshire County Council,101893,23/03/2017,10246295,TC,272426659,,272426659,PI,585,16/03/2017
INSERTED DETAIL,Growth and Investment,Planning General/Income,PLN00,Consultancy Costs,0740,3425.00,Warwickshire County Council,101893,23/03/2017,10246296,TC,272426659,,272426659,PI,4110,16/03/2017
INSERTED DETAIL,Growth and Investment,Planning General/Income,PLN00,Payments to Other Local Authorities,0710,3471.47,Warwickshire County Council,101893,23/03/2017,10246313,TC,272426659,,272426659,PN,3471.47,16/03/2017
INSERTED DETAIL,Growth and Investment,Planning General/Income,PLN00,Payments to Other Local Authorities,0710,2711.16,Warwickshire County Council,101893,23/03/2017,10246382,TC,272426659,,272426659,PN,3253.39,20/03/2017
INSERTED DETAIL,Growth and Investment,Planning General/Income,PLN00,Payments to Other Local Authorities,0710,2911.16,Warwickshire County Council,101893,23/03/2017,10246383,TC,272426659,,272426659,PN,3493.39,20/03/2017
INSERTED DETAIL,Growth and Investment,Economic Development General,ECD00,External Contractor & Operator,0742,5106.00,Warwickshire County Council,101893,30/03/2017,10246394,TC,272426659,,272426659,PN,6127.2,20/03/2017
INSERTED DETAIL,Growth and Investment,Hall of Fame,TRY00,Building cleaning,0170,1163.25,Warwickshire County Council,101893,23/03/2017,10246422,TC,272426659,,272426659,PN,1395.9,20/03/2017
INSERTED DETAIL,Communities and Homes,Warwickshire On Line Partnership,JCC10,Payments to Other Local Authorities,0710,4500.00,Warwickshire County Council,101893,30/03/2017,10246583,TC,272426659,,272426659,PN,4500,24/03/2017
INSERTED DETAIL,Communities and Homes,Customer Support Services,CSS00,Payments to Other Local Authorities,0710,1980.00,Warwickshire County Council,101893,30/03/2017,10246727,TC,272426659,,272426659,PN,1980,29/03/2017
INSERTED DETAIL,Communities and Homes,Housing Strategy & Enabling,HSE00,External Contractor & Operator,0742,7400.00,Actonenergy,101907,23/03/2017,10246177,TC,738686674,3621022,738686674,PN,8880,14/03/2017
INSERTED DETAIL,Housing Revenue Account,Miscellaneous Unplanned Maintenance and Repair,UMR17,R&M External Contractors,0100,49.92,Adroit Services Ltd,101939,02/03/2017,10245575,CS,812650159,4729393,812650159,PN,1258.48,27/02/2017
INSERTED DETAIL,Capital Housing Revenue Account,Heating Upgrades,HIM01,Capital Contract Payments,5000,998.81,Adroit Services Ltd,101939,02/03/2017,10245575,CS,812650159,4729393,812650159,PN,1258.48,27/02/2017
INSERTED DETAIL,Capital Housing Revenue Account,Heating Upgrades,HIM01,Capital Contract Payments,5000,1969.54,Adroit Services Ltd,101939,23/03/2017,10246500,CS,812650159,4729393,812650159,PN,2363.45,22/03/2017
INSERTED DETAIL,Housing Revenue Account,Solid fuel installations - Churchover,UMR16,R&M External Contractors,0100,5726.12,Adroit Services Ltd,101939,30/03/2017,10246598,CS,812650159,4729393,812650159,PN,10762.64,24/03/2017
INSERTED DETAIL,Capital Housing Revenue Account,Heating Upgrades,HIM01,Capital Contract Payments,5000,3242.75,Adroit Services Ltd,101939,30/03/2017,10246598,CS,812650159,4729393,812650159,PN,10762.64,24/03/2017
INSERTED DETAIL,Communities and Homes,Housing Options Team,HOT00,Rents,0140,456.67,The Rugby Hotel,108058,30/03/2017,10246472,TC,130176451,,130176451,PN,548,22/03/2017
INSERTED DETAIL,Communities and Homes,ITC & Support Services,CIS10,Payments to Other Local Authorities,0710,7500.00,Nuneaton & Bedworth Borough Council,108060,23/03/2017,10245911,TC,115336790,,115336790,PN,9000,06/03/2017
INSERTED DETAIL,Capital Housing Revenue Account,Kitchen Modifications,HIK10,Capital Contract Payments,5000,2841.19,Nuneaton & Bedworth Borough Council,108060,16/03/2017,10246017,TC,115336790,,115336790,PN,17246.43,08/03/2017
INSERTED DETAIL,Capital Housing Revenue Account,Heating Upgrades,HIM01,Capital Contract Payments,5000,3268.33,Nuneaton & Bedworth Borough Council,108060,16/03/2017,10246017,TC,115336790,,115336790,PN,17246.43,08/03/2017
INSERTED DETAIL,Capital Housing Revenue Account,Energy Efficiency Long Lawford External Cladding,HWI00,Capital Contract Payments,5000,1325.00,Nuneaton & Bedworth Borough Council,108060,16/03/2017,10246017,TC,115336790,,115336790,PN,17246.43,08/03/2017
INSERTED DETAIL,Capital Housing Revenue Account,Housing Window Replacement,HWR00,Capital Contract Payments,5000,6000.00,Nuneaton & Bedworth Borough Council,108060,16/03/2017,10246017,TC,115336790,,115336790,PN,17246.43,08/03/2017
INSERTED DETAIL,Capital Housing Revenue Account,Strategic Land Acquisition,SLA00,Capital Contract Payments,5000,937.50,Nuneaton & Bedworth Borough Council,108060,16/03/2017,10246017,TC,115336790,,115336790,PN,17246.43,08/03/2017
INSERTED DETAIL,Corporate Resources,Change Team,BTR50,Payments to Other Local Authorities,0710,35532.34,Nuneaton & Bedworth Borough Council,108060,30/03/2017,10246711,TC,115336790,,115336790,PN,42638.81,29/03/2017
INSERTED DETAIL,Communities and Homes,ITC & Support Services,CIS10,Software/Equipment Licences,0379,488.06,Data Insight Ltd,108217,23/03/2017,10246338,TC,,,,PI,585.67,17/03/2017
INSERTED DETAIL,Communities and Homes,ITC & Support Services,CIS10,Software/Equipment Licences,0379,-488.06,Data Insight Ltd,108217,29/03/2017,10246522,TC,,,,PN,-585.67,23/03/2017
INSERTED DETAIL,Environment and Public Realm,Crematorium,CRM00,Medical Referees Fees,0413,1628.00,Dunchurch Surgery,108687,16/03/2017,10246125,TC,,,,PN,1628,13/03/2017
INSERTED DETAIL,Corporate Resources,Corporate Property Administration,CPA00,Professional Subscriptions,0017,204.80,RICS,108928,16/03/2017,10246162,TC,584940013,,584940013,PN,512,13/03/2017
INSERTED DETAIL,Housing Revenue Account,Property Maintenance,MAN23,Professional Subscriptions,0017,307.20,RICS,108928,16/03/2017,10246162,TC,584940013,,584940013,PN,512,13/03/2017
INSERTED DETAIL,Communities and Homes,Woodside Park,TVR00,Other Agencies,0734,1026.00,Environment Agency,109492,30/03/2017,10246634,TC,662490134,,662490134,PN,1026,27/03/2017
INSERTED DETAIL,Environment and Public Realm,Grounds Maintenance,WGM00,Materials,0303,670.16,Boughton Loam Limited,110360,02/03/2017,10245469,TC,425600284,,425600284,PI,804.19,22/02/2017
INSERTED DETAIL,Environment and Public Realm,Grounds Maintenance,WGM00,Materials,0303,647.55,Boughton Loam Limited,110360,16/03/2017,10246052,TC,425600284,,425600284,PI,777.06,09/03/2017
INSERTED DETAIL,Environment and Public Realm,Garage,WVR00,Materials,0303,16918.52,Watson Petroleum,110361,02/03/2017,10245480,TC,195046059,,195046059,PI,20302.22,22/02/2017
INSERTED DETAIL,Environment and Public Realm,Garage,WVR00,Materials,0303,27592.95,Watson Petroleum,110361,23/03/2017,10246431,TC,195046059,,195046059,PI,33111.54,21/03/2017
INSERTED DETAIL,Environment and Public Realm,Garage,WVR00,Materials,0303,1856.46,Watson Petroleum,110361,30/03/2017,10246432,TC,195046059,,195046059,PI,2227.75,21/03/2017
INSERTED DETAIL,Corporate Resources,Corporate Property R&M,CPA01,R&M External Contractors,0100,470.92,Croxford Electrical Ltd,110451,02/03/2017,10245235,CS,307440876,7751876,307 4408 76,PN,565.09,15/02/2017
INSERTED DETAIL,Corporate Resources,Corporate Property R&M,CPA01,R&M External Contractors,0100,499.49,Croxford Electrical Ltd,110451,02/03/2017,10245397,CS,307440876,7751876,307 4408 76,PN,599.39,21/02/2017
INSERTED DETAIL,Corporate Resources,Corporate Property R&M,CPA01,R&M External Contractors,0100,1157.43,Croxford Electrical Ltd,110451,30/03/2017,10246676,CS,307440876,7751876,307 4408 76,PN,1388.92,28/03/2017
INSERTED DETAIL,Corporate Resources,Corporate Property R&M,CPA01,R&M External Contractors,0100,680.33,Croxford Electrical Ltd,110451,30/03/2017,10246746,CS,307440876,7751876,307 4408 76,PN,816.4,29/03/2017
INSERTED DETAIL,Communities and Homes,Maintenance of Customer Services Systems,CIS21,Software Maintenance,0374,500.00,Result Software Limited,111010,23/03/2017,10246040,TC,700920183,3434758,700920183,PN,600,09/03/2017
INSERTED DETAIL,Environment and Public Realm,Cemeteries General,CEM00,Purchases for Resale,0305,450.00,P D Timms,111508,30/03/2017,10246703,TC,420836274,,420836274,PN,540,28/03/2017
INSERTED DETAIL,Environment and Public Realm,Crematorium,CRM00,Purchases for Resale,0305,484.33,P D Timms,111508,30/03/2017,10246704,TC,420836274,,420836274,PN,581.2,28/03/2017
INSERTED DETAIL,Environment and Public Realm,Crematorium,CRM00,Purchases for Resale,0305,431.08,P D Timms,111508,30/03/2017,10246705,TC,420836274,,420836274,PN,517.3,28/03/2017
INSERTED DETAIL,Environment and Public Realm,Crematorium,CRM00,Purchases for Resale,0305,481.08,P D Timms,111508,30/03/2017,10246707,TC,420836274,,420836274,PN,577.3,28/03/2017
INSERTED DETAIL,Environment and Public Realm,Crematorium,CRM00,Purchases for Resale,0305,424.33,P D Timms,111508,30/03/2017,10246708,TC,420836274,,420836274,PN,509.2,28/03/2017
INSERTED DETAIL,Environment and Public Realm,Crematorium,CRM00,Purchases for Resale,0305,431.83,P D Timms,111508,30/03/2017,10246714,TC,420836274,,420836274,PN,518.2,29/03/2017
INSERTED DETAIL,Environment and Public Realm,Garage,WVR00,Materials,0303,560.00,Vision Techniques (UK) LTD,111526,02/03/2017,10245445,TC,712562946,,712562946,PN,672,22/02/2017
INSERTED DETAIL,Environment and Public Realm,Garage,WVR00,Materials,0303,560.00,Vision Techniques (UK) LTD,111526,30/03/2017,10246738,TC,712562946,,712562946,PN,672,29/03/2017
INSERTED DETAIL,Growth and Investment,Sports and Recreation,LSD03,Development Activities,0450,1050.00,The Chefs Kitchen (UK) Limited,111682,30/03/2017,10246532,TC,765564984,,765 5649 84,PN,1260,23/03/2017
INSERTED DETAIL,Environment and Public Realm,Grounds Maintenance,WGM00,External Contractor & Operator,0742,5548.14,Landmark Garden Care,112612,23/03/2017,10246393,TC,899770537,,899770537,PN,6657.77,20/03/2017
INSERTED DETAIL,Executive Director Office,Civic Responsibilities,CIV00,Other Miscellaneous Expenses,0444,956.24,Thomas Fattorini Ltd,112742,09/03/2017,10245982,TC,343412878,,343412878,PI,956.24,07/03/2017
INSERTED DETAIL,Environment and Public Realm,Crematorium,CRM00,New Equipment,0300,1144.00,Teleshore (UK) Ltd,112868,23/03/2017,10246302,TC,655748006,,655 7480 06,PI,1372.8,16/03/2017
INSERTED DETAIL,Growth and Investment,Visitor Centre,VSC00,Contract Hire,0220,650.00,Catteralls Coach and Travel Services,113835,09/03/2017,10245872,TC,3760050457,1698062,3760050457,PN,650,06/03/2017
INSERTED DETAIL,Growth and Investment,Visitor Centre,VSC00,Events Tickets - Zero Rated,1405,8464.00,Catteralls Coach and Travel Services,113835,30/03/2017,10246471,TC,3760050457,1698062,3760050457,PN,8464,21/03/2017
INSERTED DETAIL,Environment and Public Realm,Crematorium,CRM00,Purchases for Resale,0305,2904.00,Streetmaster (South Wales) Ltd,114898,30/03/2017,10246562,TC,438532540,,438 5325 40,PI,3484.8,24/03/2017
INSERTED DETAIL,Communities and Homes,CL Grants,CGS00,Grants To Voluntary Organisations,0720,2000.00,Newbold on Avon Rugby Football Club,115674,30/03/2017,10246594,TC,,,,PN,2000,24/03/2017
INSERTED DETAIL,Housing Revenue Account,Miscellaneous Unplanned Maintenance and Repair,UMR17,R&M External Contractors,0100,1295.00,Chillaire Ltd,117596,30/03/2017,10246546,CS,,2686557,,PN,1554,23/03/2017
INSERTED DETAIL,Corporate Resources,Corporate Property Central Utilities,CPA02,Electricity,0130,-5547.99,Southern Electric,118976,09/12/2016,10243016,TC,553769603,,553769603,PN,-6758.76,09/12/2016
INSERTED DETAIL,Communities and Homes,CL Grants,CGS00,Grants To Voluntary Organisations,0720,2000.00,Overslade Community Association,119698,30/03/2017,10246639,TC,,,,PN,2000,27/03/2017
INSERTED DETAIL,Housing Revenue Account,Miscellaneous Unplanned Maintenance and Repair,UMR17,R&M External Contractors,0100,2200.00,Michael Dyson Associates,121502,23/03/2017,10246391,TC,567278204,2903668,567278204,PN,2640,20/03/2017
INSERTED DETAIL,Capital Housing Revenue Account,Housing Management System,HCE08,IT Capital Expenditure,5025,5000.00,Northgate Public Services (UK)  Ltd,121606,30/03/2017,10245210,TC,207588545,968498,207588545,PI,6000,14/02/2017
INSERTED DETAIL,Communities and Homes,Maintenance of Customer Services Systems,CIS21,Software Maintenance,0374,809.64,Northgate Public Services (UK)  Ltd,121606,09/03/2017,10245880,TC,207588545,968498,207588545,PI,971.57,06/03/2017
INSERTED DETAIL,Communities and Homes,Maintenance of Customer Services Systems,CIS21,Software Maintenance,0374,30572.37,Northgate Public Services (UK)  Ltd,121606,09/03/2017,10245881,TC,207588545,968498,207588545,PI,36686.84,06/03/2017
INSERTED DETAIL,Environment and Public Realm,Crematorium,CRM00,Software Maintenance,0374,1458.30,Gower Consultants Ltd,121747,23/03/2017,10242996,TC,351325777,1649529,351325777,PN,1749.96,09/12/2016
INSERTED DETAIL,Environment and Public Realm,Cemeteries General,CEM00,Software Maintenance,0374,2025.70,Gower Consultants Ltd,121747,23/03/2017,10243545,TC,351325777,1649529,351325777,PN,2430.84,03/01/2017
INSERTED DETAIL,Environment and Public Realm,Cemeteries General,CEM00,Software Maintenance,0374,890.63,Gower Consultants Ltd,121747,23/03/2017,10243546,TC,351325777,1649529,351325777,PN,1068.75,03/01/2017
INSERTED DETAIL,Communities and Homes,Maintenance of Customer Services Systems,CIS21,Software Maintenance,0374,7261.46,Covalent Software Limited,122520,30/03/2017,10245743,TC,811348258,4645635,811348258,PN,8713.75,01/03/2017
INSERTED DETAIL,Housing Revenue Account,Property Maintenance,MAN23,Software Maintenance,0374,720.00,HQN Limited,122890,23/03/2017,10245464,TC,547073243,,547073243,PN,864,22/02/2017
INSERTED DETAIL,Environment and Public Realm,Garage,WVR00,Maintenance of Equipment,0301,735.33,Fueltek Ltd,123134,30/03/2017,10246503,TC,785126413,,785 1264 13,PI,882.4,22/03/2017
INSERTED DETAIL,Environment and Public Realm,Section 106 Grounds Maintenance,PKS16,Maintenance of Equipment,0301,2831.24,Proludic,123148,09/03/2017,10245033,CS,796632872,,796632872,PI,3397.49,10/02/2017
INSERTED DETAIL,Environment and Public Realm,Parks,PKS00,Maintenance of Equipment,0301,867.83,Proludic,123148,30/03/2017,10246346,CS,796632872,,796632872,PI,1041.4,20/03/2017
INSERTED DETAIL,Communities and Homes,"Landlines, faxes, alarms & misc.",TEL02,Telephone Expenses,0371,560.64,Cable & Wireless/T/A Vodafone,123224,09/03/2017,10245874,TC,569953277,,569953277,PN,672.77,06/03/2017
INSERTED DETAIL,Communities and Homes,"Landlines, faxes, alarms & misc.",TEL02,Telephone Expenses,0371,628.11,Cable & Wireless/T/A Vodafone,123224,30/03/2017,10246517,TC,569953277,,569953277,PN,753.73,22/03/2017
INSERTED DETAIL,Communities and Homes,"Landlines, faxes, alarms & misc.",TEL02,Telephone Expenses,0371,650.92,Cable & Wireless/T/A Vodafone,123224,30/03/2017,10246518,TC,569953277,,569953277,PN,781.1,22/03/2017
INSERTED DETAIL,Environment and Public Realm,Grounds Maintenance,WGM00,Materials,0303,2580.00,Rigby Taylor Ltd,123342,02/03/2017,10244914,TC,354646243,,354646243,PI,3096,07/02/2017
INSERTED DETAIL,Executive Director Office,"Communications, Consultation and Information Team",BTR20,Publicity & Marketing,0377,1040.00,Krishna Enterprises Ltd T/A Steers Printing,123590,16/03/2017,10246167,TC,844218628,,844218628,PI,1040,14/03/2017
INSERTED DETAIL,Environment and Public Realm,Environmental Protection FPNs,REG20,Signage,0151,325.00,Keep Britain Tidy,124855,23/03/2017,10246148,TC,849750188,,849750188,PI,2790,13/03/2017
INSERTED DETAIL,Environment and Public Realm,Environmental Protection FPNs,REG20,External Printing,0352,2000.00,Keep Britain Tidy,124855,23/03/2017,10246148,TC,849750188,,849750188,PI,2790,13/03/2017
INSERTED DETAIL,Housing Revenue Account,Miscellaneous Unplanned Maintenance and Repair,UMR17,R&M External Contractors,0100,491.73,Utilitycom Ltd,124856,02/03/2017,10245654,TC,793346693,3431517,793346693,PN,590.08,28/02/2017
INSERTED DETAIL,Environment and Public Realm,Britain In Bloom,PKS09,External Contractor & Operator,0742,750.00,Wyevale Garden Centres,125739,30/03/2017,10246570,TC,478840792,662286,478840792,PI,750,24/03/2017
INSERTED DETAIL,Growth and Investment,Family Lifestyle Project,LSD11,Development Activities,0450,618.00,Nuneaton & Bedworth Leisure Trust,125775,09/03/2017,10245615,TC,824455625,4955172,824455625,PN,618,27/02/2017
INSERTED DETAIL,Environment and Public Realm,Parks,PKS00,External Contractor & Operator,0742,760.00,Complete Weed Control,129556,23/03/2017,10246416,TC,389237311,,389237311,PI,912,20/03/2017
INSERTED DETAIL,Communities and Homes,Central Business Support Services,CSS15,Stationery Supplies,0350,462.38,Lyreco,129956,09/03/2017,10245802,TC,927265703,,927265703,PI,554.86,02/03/2017
INSERTED DETAIL,Housing Revenue Account,Supervision and Management General,MAN00,Consultancy Costs,0740,2950.00,RGI Surveys,130446,02/03/2017,10245619,TC,485786578,2329580,485786578,PI,3540,27/02/2017
INSERTED DETAIL,Executive Director Office,"Communications, Consultation and Information Team",BTR20,Publicity & Marketing,0377,6500.00,Touch Broadcasting Co Ltd T/A Rugby FM,131249,09/03/2017,10245815,TC,792071032,,792071032,PN,7800,02/03/2017
INSERTED DETAIL,Executive Director Office,"Communications, Consultation and Information Team",BTR20,Consultation,0378,3300.00,Touch Broadcasting Co Ltd T/A Rugby FM,131249,30/03/2017,10246754,TC,792071032,,792071032,PN,3300,29/03/2017
INSERTED DETAIL,Executive Director Office,"Communications, Consultation and Information Team",BTR20,Consultation,0378,7800.00,Touch Broadcasting Co Ltd T/A Rugby FM,131249,30/03/2017,10246782,TC,792071032,,792071032,PN,7800,29/03/2017
INSERTED DETAIL,Executive Director Office,"Communications, Consultation and Information Team",BTR20,Publicity & Marketing,0377,7500.00,Touch Broadcasting Co Ltd T/A Rugby FM,131249,30/03/2017,10246783,TC,792071032,,792071032,PN,7500,29/03/2017
INSERTED DETAIL,Environment and Public Realm,Parks,PKS00,Maintenance of Equipment,0301,850.00,I D Welding & Fabrications,131407,09/03/2017,10245467,CS,687567859,,687567859,PI,1020,22/02/2017
INSERTED DETAIL,Capital Environment and Public Realm,Woodland Creation Project,WCP00,Capital Contract Payments,5000,1886.00,I D Welding & Fabrications,131407,23/03/2017,10246410,CS,687567859,,687567859,PI,2263.2,20/03/2017
INSERTED DETAIL,Environment and Public Realm,Section 106 Grounds Maintenance,PKS16,External Contractor & Operator,0742,4916.00,Sutcliffe Play Ltd,131511,09/03/2017,10245731,TC,817894678,4780910,817894678,PI,5899.2,01/03/2017
INSERTED DETAIL,Environment and Public Realm,Regulatory Services,REG00,External Contractor & Operator,0742,5000.00,Aecom Ltd,131603,23/03/2017,10246390,TC,611853162,,611853162,PN,6000,20/03/2017
INSERTED DETAIL,Environment and Public Realm,Car Parks General,CPK01,Cash Collection,0744,980.92,Jade Security Services Ltd,131711,09/03/2017,10245760,TC,642505654,,642505654,PN,1177.1,02/03/2017
INSERTED DETAIL,Housing Revenue Account,Repairs and Maintenance - Void works,UMR09,R&M External Contractors,0100,165.00,RF Digital Ltd,133161,02/03/2017,10245478,TC,887307093,,887307093,PN,1638,22/02/2017
INSERTED DETAIL,Housing Revenue Account,Miscellaneous Unplanned Maintenance and Repair,UMR17,R&M External Contractors,0100,1200.00,RF Digital Ltd,133161,02/03/2017,10245478,TC,887307093,,887307093,PN,1638,22/02/2017
INSERTED DETAIL,Corporate Resources,Corporate Property R&M,CPA01,R&M External Contractors,0100,452.00,Sunfish Services Ltd,133886,02/03/2017,10245223,CS,845393893,,845393893,PN,542.4,15/02/2017
INSERTED DETAIL,Corporate Resources,Corporate Property R&M,CPA01,R&M External Contractors,0100,645.12,Sunfish Services Ltd,133886,02/03/2017,10245431,CS,845393893,,845393893,PN,774.14,21/02/2017
INSERTED DETAIL,Housing Revenue Account,Fire Alarm maintenance,UMR13,R&M External Contractors,0100,255.52,Sunfish Services Ltd,133886,23/03/2017,10246499,CS,845393893,,845393893,PN,728.93,22/03/2017
INSERTED DETAIL,Housing Revenue Account,Miscellaneous Unplanned Maintenance and Repair,UMR17,R&M External Contractors,0100,351.93,Sunfish Services Ltd,133886,23/03/2017,10246499,CS,845393893,,845393893,PN,728.93,22/03/2017
INSERTED DETAIL,Corporate Resources,Corporate Property R&M,CPA01,R&M External Contractors,0100,734.67,Sunfish Services Ltd,133886,30/03/2017,10246788,CS,845393893,,845393893,PN,881.6,29/03/2017
INSERTED DETAIL,Housing Revenue Account,Sheltered Housing,AGP00,Other Miscellaneous Expenses,0444,15789.00,Midland Heart Ltd,134018,30/03/2017,10246268,TC,880986174,,880 9861 74,PN,15789,16/03/2017
INSERTED DETAIL,Corporate Resources,Human Resources Centralised Services,RES31,Eye Tests & Glasses Contributions,0015,850.00,Specsavers Optical Superstores,134897,30/03/2017,10246776,TC,,,,PN,850,29/03/2017
INSERTED DETAIL,Communities and Homes,CL Grants,CGS00,Grants To Voluntary Organisations,0720,2000.00,Brownsover Community Association,135180,30/03/2017,10246591,TC,,,,PN,2000,24/03/2017
INSERTED DETAIL,Growth and Investment,AGM Education,AGM03,Development Activities,0450,540.00,Casscade Ltd,138997,09/03/2017,10245891,TC,,,,PI,540,06/03/2017
INSERTED DETAIL,Growth and Investment,AGM Conservation/Documentation,AGM01,Other Miscellaneous Expenses,0444,970.00,Meaco Measurement and Control Ltd,138998,09/03/2017,10245909,TC,866601509,,866 6015 09,PN,1164,06/03/2017
INSERTED DETAIL,Growth and Investment,Planning General/Income,PLN00,Consultancy Costs,0740,675.00,GHM Planning Ltd,139382,23/03/2017,10246425,TC,855590787,6233007,855 5907 87,PN,810,20/03/2017
INSERTED DETAIL,Environment and Public Realm,Grounds Maintenance,WGM00,External Contractor & Operator,0742,1320.00,D J Whitlock Plant Hire,140156,30/03/2017,10246607,CS,833940226,,833940226,PN,1584,27/03/2017
INSERTED DETAIL,Communities and Homes,Maintenance of Customer Services Systems,CIS21,Software Maintenance,0374,6292.25,Midland Software Ltd,140463,09/03/2017,10245550,TC,705850636,,705850636,PN,7550.7,27/02/2017
INSERTED DETAIL,Environment and Public Realm,Car Parks General,CPK01,External Contractor & Operator,0742,477.60,StoneWall Security Ltd,140775,02/03/2017,10245707,TC,937387578,6587546,937387578,PN,573.12,01/03/2017
INSERTED DETAIL,Housing Revenue Account,Solid fuel servicing,UMR12,R&M External Contractors,0100,201.65,Elite Sweep Service,141080,09/03/2017,10245999,TC,896261385,,896 2613 85,PN,841.98,08/03/2017
INSERTED DETAIL,Housing Revenue Account,Solid fuel installations - Churchover,UMR16,R&M External Contractors,0100,500.00,Elite Sweep Service,141080,09/03/2017,10245999,TC,896261385,,896 2613 85,PN,841.98,08/03/2017
INSERTED DETAIL,Housing Revenue Account,Solid fuel installations - Churchover,UMR16,R&M External Contractors,0100,769.08,Elite Sweep Service,141080,23/03/2017,10246380,TC,896261385,,896 2613 85,PN,922.9,20/03/2017
INSERTED DETAIL,Communities and Homes,Broadband & internet,TEL01,Telephone Expenses,0371,970.25,Zen Internet Ltd,141612,02/03/2017,10245463,TC,686049501,3101568,686049501,PN,1164.3,22/02/2017
INSERTED DETAIL,Environment and Public Realm,Crematorium,CRM00,Telephone Expenses,0371,538.00,Zen Internet Ltd,141612,09/03/2017,10245757,TC,686049501,3101568,686049501,PN,645.6,02/03/2017
INSERTED DETAIL,Communities and Homes,Broadband & internet,TEL01,Telephone Expenses,0371,970.25,Zen Internet Ltd,141612,30/03/2017,10246495,TC,686049501,3101568,686049501,PN,1164.3,22/03/2017
INSERTED DETAIL,Environment and Public Realm,Domestic Waste Collection/Recycling,REF00,External Contractor & Operator,0742,7688.02,Pure Recycling (Warwick) Limited,141883,09/03/2017,10245685,TC,922427047,,922427047,PN,9225.62,28/02/2017
INSERTED DETAIL,Housing Revenue Account,Gas Heating Systems,UMR01,R&M External Contractors,0100,480.00,Certsure LLP,142076,02/03/2017,10245493,TC,799123488,2513162,799123488,PN,576,23/02/2017
INSERTED DETAIL,Housing Revenue Account,Gas Heating Systems,UMR01,R&M External Contractors,0100,780.00,Certsure LLP,142076,02/03/2017,10245494,TC,799123488,2513162,799123488,PN,936,23/02/2017
INSERTED DETAIL,Housing Revenue Account,Gas Heating Systems,UMR01,R&M External Contractors,0100,1650.00,Certsure LLP,142076,30/03/2017,10246580,TC,799123488,2513162,799123488,PN,1980,24/03/2017
INSERTED DETAIL,Environment and Public Realm,Street Cleansing,WSC00,Agency Staff,0003,609.54,Comensura Limited,142471,02/03/2017,10245742,TC,755321145,4085767,755 3211 45,PN,8517.58,01/03/2017
INSERTED DETAIL,Environment and Public Realm,Domestic Waste Collection,WWC00,Agency Staff,0003,6488.49,Comensura Limited,142471,02/03/2017,10245742,TC,755321145,4085767,755 3211 45,PN,8517.58,01/03/2017
INSERTED DETAIL,Environment and Public Realm,Street Cleansing,WSC00,Agency Staff,0003,1120.13,Comensura Limited,142471,09/03/2017,10246015,TC,755321145,4085767,755 3211 45,PN,6221.98,08/03/2017
INSERTED DETAIL,Environment and Public Realm,Domestic Waste Collection,WWC00,Agency Staff,0003,4064.85,Comensura Limited,142471,09/03/2017,10246015,TC,755321145,4085767,755 3211 45,PN,6221.98,08/03/2017
INSERTED DETAIL,Environment and Public Realm,Street Cleansing,WSC00,Agency Staff,0003,452.22,Comensura Limited,142471,16/03/2017,10246219,TC,755321145,4085767,755 3211 45,PN,8757.74,15/03/2017
INSERTED DETAIL,Environment and Public Realm,Domestic Waste Collection,WWC00,Agency Staff,0003,6101.74,Comensura Limited,142471,16/03/2017,10246219,TC,755321145,4085767,755 3211 45,PN,8757.74,15/03/2017
INSERTED DETAIL,Environment and Public Realm,Trade Waste Collection,WWC01,Agency Staff,0003,744.16,Comensura Limited,142471,16/03/2017,10246219,TC,755321145,4085767,755 3211 45,PN,8757.74,15/03/2017
INSERTED DETAIL,Environment and Public Realm,Grounds Maintenance,WGM00,Agency Staff,0003,761.60,Comensura Limited,142471,30/03/2017,10246490,TC,755321145,4085767,755 3211 45,PN,12008.15,22/03/2017
INSERTED DETAIL,Environment and Public Realm,Street Cleansing,WSC00,Agency Staff,0003,1285.50,Comensura Limited,142471,30/03/2017,10246490,TC,755321145,4085767,755 3211 45,PN,12008.15,22/03/2017
INSERTED DETAIL,Environment and Public Realm,Domestic Waste Collection,WWC00,Agency Staff,0003,7524.58,Comensura Limited,142471,30/03/2017,10246490,TC,755321145,4085767,755 3211 45,PN,12008.15,22/03/2017
INSERTED DETAIL,Environment and Public Realm,Trade Waste Collection,WWC01,Agency Staff,0003,435.12,Comensura Limited,142471,30/03/2017,10246490,TC,755321145,4085767,755 3211 45,PN,12008.15,22/03/2017
INSERTED DETAIL,Environment and Public Realm,Grounds Maintenance,WGM00,Agency Staff,0003,761.60,Comensura Limited,142471,30/03/2017,10246742,TC,755321145,4085767,755 3211 45,PN,10296.65,29/03/2017
INSERTED DETAIL,Environment and Public Realm,Street Cleansing,WSC00,Agency Staff,0003,624.77,Comensura Limited,142471,30/03/2017,10246742,TC,755321145,4085767,755 3211 45,PN,10296.65,29/03/2017
INSERTED DETAIL,Environment and Public Realm,Domestic Waste Collection,WWC00,Agency Staff,0003,7194.20,Comensura Limited,142471,30/03/2017,10246742,TC,755321145,4085767,755 3211 45,PN,10296.65,29/03/2017
INSERTED DETAIL,Housing Revenue Account,Control Centre CCTV,CCE01,External Contractor & Operator,0742,16139.67,Securitas Security Personnel Ltd,145079,23/03/2017,10246402,TC,603175864,1062876,603175864,PN,19367.6,20/03/2017
INSERTED DETAIL,Corporate Resources,General Financial Services,GFS00,External Contractor & Operator,0742,13742.00,Grant Thornton UK LLP,145501,16/03/2017,10246215,TC,835586102,,835586102,PN,16490.4,15/03/2017
INSERTED DETAIL,Corporate Resources,Corporate Property R&M,CPA01,R&M External Contractors,0100,584.00,ESM Power Limited,145695,23/03/2017,10246200,TC,780689580,4611637,780689580,PI,700.8,14/03/2017
INSERTED DETAIL,Housing Revenue Account,Alfred Green Close AP,AGP01,Building cleaning,0170,74.50,Ayleton Cleaning Ltd,146004,09/03/2017,10245679,TC,623864430,,623864430,PI,599.4,28/02/2017
INSERTED DETAIL,Housing Revenue Account,Avon Court AP,AGP02,Building cleaning,0170,78.00,Ayleton Cleaning Ltd,146004,09/03/2017,10245679,TC,623864430,,623864430,PI,599.4,28/02/2017
INSERTED DETAIL,Housing Revenue Account,Mercer Court AP,AGP09,Building cleaning,0170,62.50,Ayleton Cleaning Ltd,146004,09/03/2017,10245679,TC,623864430,,623864430,PI,599.4,28/02/2017
INSERTED DETAIL,Housing Revenue Account,Pettiver Crescent I AP,AGP10,Building cleaning,0170,80.50,Ayleton Cleaning Ltd,146004,09/03/2017,10245679,TC,623864430,,623864430,PI,599.4,28/02/2017
INSERTED DETAIL,Housing Revenue Account,Tanser Court AP,AGP17,Building cleaning,0170,114.00,Ayleton Cleaning Ltd,146004,09/03/2017,10245679,TC,623864430,,623864430,PI,599.4,28/02/2017
INSERTED DETAIL,Housing Revenue Account,Hirst Close AP,AGP33,Building cleaning,0170,90.00,Ayleton Cleaning Ltd,146004,09/03/2017,10245679,TC,623864430,,623864430,PI,599.4,28/02/2017
INSERTED DETAIL,Environment and Public Realm,Garage,WVR00,Tools,0304,836.58,Midland Vehicle Components Ltd,146025,09/03/2017,10245666,TC,,,,PI,1003.9,28/02/2017
INSERTED DETAIL,Corporate Resources,Corporate Property R&M,CPA01,R&M External Contractors,0100,987.20,Stanair Industrial Services Ltd,146499,30/03/2017,10246557,CS,,,,PI,1184.64,23/03/2017
INSERTED DETAIL,Corporate Resources,Legal Services,DEM20,Conference & Seminar Fees,0401,500.00,MBL Seminars,146589,30/03/2017,10246656,TC,816093826,4746709,816093826,PN,600,27/03/2017
INSERTED DETAIL,Housing Revenue Account,Sheltered Housing,AGP00,Electricity,0130,193.58,Total Gas & Power Ltd,146631,02/03/2017,10245503,TC,689638949,2172239,689638949,PN,12924.03,23/02/2017
INSERTED DETAIL,Housing Revenue Account,Alfred Green Close AP,AGP01,Electricity,0130,301.90,Total Gas & Power Ltd,146631,02/03/2017,10245503,TC,689638949,2172239,689638949,PN,12924.03,23/02/2017
INSERTED DETAIL,Housing Revenue Account,Avon Court AP,AGP02,Electricity,0130,255.39,Total Gas & Power Ltd,146631,02/03/2017,10245503,TC,689638949,2172239,689638949,PN,12924.03,23/02/2017
INSERTED DETAIL,Housing Revenue Account,Dickinson Court AP,AGP03,Electricity,0130,248.48,Total Gas & Power Ltd,146631,02/03/2017,10245503,TC,689638949,2172239,689638949,PN,12924.03,23/02/2017
INSERTED DETAIL,Housing Revenue Account,Duffy Place AP,AGP04,Electricity,0130,223.73,Total Gas & Power Ltd,146631,02/03/2017,10245503,TC,689638949,2172239,689638949,PN,12924.03,23/02/2017
INSERTED DETAIL,Housing Revenue Account,Frederick Press Way AP,AGP06,Electricity,0130,630.09,Total Gas & Power Ltd,146631,02/03/2017,10245503,TC,689638949,2172239,689638949,PN,12924.03,23/02/2017
INSERTED DETAIL,Housing Revenue Account,John Thwaites Close AP,AGP08,Electricity,0130,94.99,Total Gas & Power Ltd,146631,02/03/2017,10245503,TC,689638949,2172239,689638949,PN,12924.03,23/02/2017
INSERTED DETAIL,Housing Revenue Account,Mercer Court AP,AGP09,Electricity,0130,243.99,Total Gas & Power Ltd,146631,02/03/2017,10245503,TC,689638949,2172239,689638949,PN,12924.03,23/02/2017
INSERTED DETAIL,Housing Revenue Account,Pettiver Crescent I AP,AGP10,Electricity,0130,302.07,Total Gas & Power Ltd,146631,02/03/2017,10245503,TC,689638949,2172239,689638949,PN,12924.03,23/02/2017
INSERTED DETAIL,Housing Revenue Account,Robotham Close AP,AGP11,Electricity,0130,262.46,Total Gas & Power Ltd,146631,02/03/2017,10245503,TC,689638949,2172239,689638949,PN,12924.03,23/02/2017
INSERTED DETAIL,Housing Revenue Account,Stacey Court AP,AGP12,Electricity,0130,81.53,Total Gas & Power Ltd,146631,02/03/2017,10245503,TC,689638949,2172239,689638949,PN,12924.03,23/02/2017
INSERTED DETAIL,Housing Revenue Account,Stretton Court AP,AGP13,Electricity,0130,103.46,Total Gas & Power Ltd,146631,02/03/2017,10245503,TC,689638949,2172239,689638949,PN,12924.03,23/02/2017
INSERTED DETAIL,Housing Revenue Account,Sun Street/Windsor Street AP,AGP14,Electricity,0130,226.40,Total Gas & Power Ltd,146631,02/03/2017,10245503,TC,689638949,2172239,689638949,PN,12924.03,23/02/2017
INSERTED DETAIL,Housing Revenue Account,Lesley Souter House AP,AGP16,Electricity,0130,578.94,Total Gas & Power Ltd,146631,02/03/2017,10245503,TC,689638949,2172239,689638949,PN,12924.03,23/02/2017
INSERTED DETAIL,Housing Revenue Account,Tanser Court AP,AGP17,Electricity,0130,469.63,Total Gas & Power Ltd,146631,02/03/2017,10245503,TC,689638949,2172239,689638949,PN,12924.03,23/02/2017
INSERTED DETAIL,Housing Revenue Account,Edward Court AP,AGP19,Electricity,0130,291.68,Total Gas & Power Ltd,146631,02/03/2017,10245503,TC,689638949,2172239,689638949,PN,12924.03,23/02/2017
INSERTED DETAIL,Housing Revenue Account,Albert Square AP,AGP20,Electricity,0130,1058.72,Total Gas & Power Ltd,146631,02/03/2017,10245503,TC,689638949,2172239,689638949,PN,12924.03,23/02/2017
INSERTED DETAIL,Housing Revenue Account,Eliot Court AP,AGP25,Electricity,0130,264.50,Total Gas & Power Ltd,146631,02/03/2017,10245503,TC,689638949,2172239,689638949,PN,12924.03,23/02/2017
INSERTED DETAIL,Housing Revenue Account,Clare Court Site,AGP27,Electricity,0130,38.91,Total Gas & Power Ltd,146631,02/03/2017,10245503,TC,689638949,2172239,689638949,PN,12924.03,23/02/2017
INSERTED DETAIL,Housing Revenue Account,Alexandra/James Court AP,AGP30,Electricity,0130,192.63,Total Gas & Power Ltd,146631,02/03/2017,10245503,TC,689638949,2172239,689638949,PN,12924.03,23/02/2017
INSERTED DETAIL,Housing Revenue Account,Hirst Close AP,AGP33,Electricity,0130,81.43,Total Gas & Power Ltd,146631,02/03/2017,10245503,TC,689638949,2172239,689638949,PN,12924.03,23/02/2017
INSERTED DETAIL,Housing Revenue Account,Assheton Close AP,AGP36,Electricity,0130,57.92,Total Gas & Power Ltd,146631,02/03/2017,10245503,TC,689638949,2172239,689638949,PN,12924.03,23/02/2017
INSERTED DETAIL,Housing Revenue Account,Bennett Court/Warwick Road AP,AGP38,Electricity,0130,201.31,Total Gas & Power Ltd,146631,02/03/2017,10245503,TC,689638949,2172239,689638949,PN,12924.03,23/02/2017
INSERTED DETAIL,Housing Revenue Account,Brookside Pailton AP,AGP40,Electricity,0130,70.98,Total Gas & Power Ltd,146631,02/03/2017,10245503,TC,689638949,2172239,689638949,PN,12924.03,23/02/2017
INSERTED DETAIL,Housing Revenue Account,Clifton Road AP,AGP41,Electricity,0130,22.70,Total Gas & Power Ltd,146631,02/03/2017,10245503,TC,689638949,2172239,689638949,PN,12924.03,23/02/2017
INSERTED DETAIL,Housing Revenue Account,Deepmore Road/Lytham Road AP,AGP42,Electricity,0130,202.96,Total Gas & Power Ltd,146631,02/03/2017,10245503,TC,689638949,2172239,689638949,PN,12924.03,23/02/2017
INSERTED DETAIL,Housing Revenue Account,Edmondson Close Dunchurch AP,AGP44,Electricity,0130,138.71,Total Gas & Power Ltd,146631,02/03/2017,10245503,TC,689638949,2172239,689638949,PN,12924.03,23/02/2017
INSERTED DETAIL,Housing Revenue Account,Featherbed Lane I AP,AGP45,Electricity,0130,169.20,Total Gas & Power Ltd,146631,02/03/2017,10245503,TC,689638949,2172239,689638949,PN,12924.03,23/02/2017
INSERTED DETAIL,Housing Revenue Account,Fox Close AP,AGP47,Electricity,0130,40.70,Total Gas & Power Ltd,146631,02/03/2017,10245503,TC,689638949,2172239,689638949,PN,12924.03,23/02/2017
INSERTED DETAIL,Housing Revenue Account,Great Balance Brinklow AP,AGP48,Electricity,0130,30.60,Total Gas & Power Ltd,146631,02/03/2017,10245503,TC,689638949,2172239,689638949,PN,12924.03,23/02/2017
INSERTED DETAIL,Housing Revenue Account,Harold Cox Place AP,AGP51,Electricity,0130,73.33,Total Gas & Power Ltd,146631,02/03/2017,10245503,TC,689638949,2172239,689638949,PN,12924.03,23/02/2017
INSERTED DETAIL,Housing Revenue Account,Jackson Road I AP,AGP53,Electricity,0130,31.30,Total Gas & Power Ltd,146631,02/03/2017,10245503,TC,689638949,2172239,689638949,PN,12924.03,23/02/2017
INSERTED DETAIL,Housing Revenue Account,Lever Road I AP,AGP57,Electricity,0130,167.79,Total Gas & Power Ltd,146631,02/03/2017,10245503,TC,689638949,2172239,689638949,PN,12924.03,23/02/2017
INSERTED DETAIL,Housing Revenue Account,Meadow Way/Primrose Court AP,AGP58,Electricity,0130,24.31,Total Gas & Power Ltd,146631,02/03/2017,10245503,TC,689638949,2172239,689638949,PN,12924.03,23/02/2017
INSERTED DETAIL,Housing Revenue Account,Norman Road AP,AGP60,Electricity,0130,14.01,Total Gas & Power Ltd,146631,02/03/2017,10245503,TC,689638949,2172239,689638949,PN,12924.03,23/02/2017
INSERTED DETAIL,Housing Revenue Account,Patterdale AP,AGP61,Electricity,0130,28.01,Total Gas & Power Ltd,146631,02/03/2017,10245503,TC,689638949,2172239,689638949,PN,12924.03,23/02/2017
INSERTED DETAIL,Housing Revenue Account,The Kent AP,AGP67,Electricity,0130,54.58,Total Gas & Power Ltd,146631,02/03/2017,10245503,TC,689638949,2172239,689638949,PN,12924.03,23/02/2017
INSERTED DETAIL,Housing Revenue Account,Victoria Street/Lawford Road AP,AGP68,Electricity,0130,17.77,Total Gas & Power Ltd,146631,02/03/2017,10245503,TC,689638949,2172239,689638949,PN,12924.03,23/02/2017
INSERTED DETAIL,Housing Revenue Account,Parkfield Road/Lea Crescent AP,AGP71,Electricity,0130,103.12,Total Gas & Power Ltd,146631,02/03/2017,10245503,TC,689638949,2172239,689638949,PN,12924.03,23/02/2017
INSERTED DETAIL,Housing Revenue Account,Pennington Street/Round Street AP,AGP72,Electricity,0130,148.62,Total Gas & Power Ltd,146631,02/03/2017,10245503,TC,689638949,2172239,689638949,PN,12924.03,23/02/2017
INSERTED DETAIL,Housing Revenue Account,Control Centre CCTV,CCE01,Electricity,0130,521.68,Total Gas & Power Ltd,146631,02/03/2017,10245503,TC,689638949,2172239,689638949,PN,12924.03,23/02/2017
INSERTED DETAIL,Housing Revenue Account,Supervision and Management General,MAN00,Electricity,0130,200.47,Total Gas & Power Ltd,146631,02/03/2017,10245503,TC,689638949,2172239,689638949,PN,12924.03,23/02/2017
INSERTED DETAIL,Housing Revenue Account,Multi-Storey Flats,MSF00,Electricity,0130,3315.09,Total Gas & Power Ltd,146631,02/03/2017,10245503,TC,689638949,2172239,689638949,PN,12924.03,23/02/2017
INSERTED DETAIL,Communities and Homes,Woodside Park,TVR00,Electricity,0130,336.28,Total Gas & Power Ltd,146631,02/03/2017,10245503,TC,689638949,2172239,689638949,PN,12924.03,23/02/2017
INSERTED DETAIL,Housing Revenue Account,Sheltered Housing,AGP00,Electricity,0130,202.02,Total Gas & Power Ltd,146631,02/03/2017,10245504,TC,689638949,2172239,689638949,PN,10480.84,23/02/2017
INSERTED DETAIL,Housing Revenue Account,Alfred Green Close AP,AGP01,Electricity,0130,249.66,Total Gas & Power Ltd,146631,02/03/2017,10245504,TC,689638949,2172239,689638949,PN,10480.84,23/02/2017
INSERTED DETAIL,Housing Revenue Account,Avon Court AP,AGP02,Electricity,0130,331.53,Total Gas & Power Ltd,146631,02/03/2017,10245504,TC,689638949,2172239,689638949,PN,10480.84,23/02/2017
INSERTED DETAIL,Housing Revenue Account,Dickinson Court AP,AGP03,Electricity,0130,167.26,Total Gas & Power Ltd,146631,02/03/2017,10245504,TC,689638949,2172239,689638949,PN,10480.84,23/02/2017
INSERTED DETAIL,Housing Revenue Account,Duffy Place AP,AGP04,Electricity,0130,244.21,Total Gas & Power Ltd,146631,02/03/2017,10245504,TC,689638949,2172239,689638949,PN,10480.84,23/02/2017
INSERTED DETAIL,Housing Revenue Account,Frederick Press Way AP,AGP06,Electricity,0130,579.93,Total Gas & Power Ltd,146631,02/03/2017,10245504,TC,689638949,2172239,689638949,PN,10480.84,23/02/2017
INSERTED DETAIL,Housing Revenue Account,John Thwaites Close AP,AGP08,Electricity,0130,104.24,Total Gas & Power Ltd,146631,02/03/2017,10245504,TC,689638949,2172239,689638949,PN,10480.84,23/02/2017
INSERTED DETAIL,Housing Revenue Account,Mercer Court AP,AGP09,Electricity,0130,204.02,Total Gas & Power Ltd,146631,02/03/2017,10245504,TC,689638949,2172239,689638949,PN,10480.84,23/02/2017
INSERTED DETAIL,Housing Revenue Account,Pettiver Crescent I AP,AGP10,Electricity,0130,270.89,Total Gas & Power Ltd,146631,02/03/2017,10245504,TC,689638949,2172239,689638949,PN,10480.84,23/02/2017
INSERTED DETAIL,Housing Revenue Account,Robotham Close AP,AGP11,Electricity,0130,289.96,Total Gas & Power Ltd,146631,02/03/2017,10245504,TC,689638949,2172239,689638949,PN,10480.84,23/02/2017
INSERTED DETAIL,Housing Revenue Account,Stacey Court AP,AGP12,Electricity,0130,62.39,Total Gas & Power Ltd,146631,02/03/2017,10245504,TC,689638949,2172239,689638949,PN,10480.84,23/02/2017
INSERTED DETAIL,Housing Revenue Account,Stretton Court AP,AGP13,Electricity,0130,108.85,Total Gas & Power Ltd,146631,02/03/2017,10245504,TC,689638949,2172239,689638949,PN,10480.84,23/02/2017
INSERTED DETAIL,Housing Revenue Account,Sun Street/Windsor Street AP,AGP14,Electricity,0130,249.00,Total Gas & Power Ltd,146631,02/03/2017,10245504,TC,689638949,2172239,689638949,PN,10480.84,23/02/2017
INSERTED DETAIL,Housing Revenue Account,Lesley Souter House AP,AGP16,Electricity,0130,642.16,Total Gas & Power Ltd,146631,02/03/2017,10245504,TC,689638949,2172239,689638949,PN,10480.84,23/02/2017
INSERTED DETAIL,Housing Revenue Account,Tanser Court AP,AGP17,Electricity,0130,439.26,Total Gas & Power Ltd,146631,02/03/2017,10245504,TC,689638949,2172239,689638949,PN,10480.84,23/02/2017
INSERTED DETAIL,Housing Revenue Account,Edward Court AP,AGP19,Electricity,0130,299.16,Total Gas & Power Ltd,146631,02/03/2017,10245504,TC,689638949,2172239,689638949,PN,10480.84,23/02/2017
INSERTED DETAIL,Housing Revenue Account,Albert Square AP,AGP20,Electricity,0130,501.72,Total Gas & Power Ltd,146631,02/03/2017,10245504,TC,689638949,2172239,689638949,PN,10480.84,23/02/2017
INSERTED DETAIL,Housing Revenue Account,Eliot Court AP,AGP25,Electricity,0130,310.77,Total Gas & Power Ltd,146631,02/03/2017,10245504,TC,689638949,2172239,689638949,PN,10480.84,23/02/2017
INSERTED DETAIL,Housing Revenue Account,Clare Court Site,AGP27,Electricity,0130,39.67,Total Gas & Power Ltd,146631,02/03/2017,10245504,TC,689638949,2172239,689638949,PN,10480.84,23/02/2017
INSERTED DETAIL,Housing Revenue Account,Alexandra/James Court AP,AGP30,Electricity,0130,198.93,Total Gas & Power Ltd,146631,02/03/2017,10245504,TC,689638949,2172239,689638949,PN,10480.84,23/02/2017
INSERTED DETAIL,Housing Revenue Account,Hirst Close AP,AGP33,Electricity,0130,90.31,Total Gas & Power Ltd,146631,02/03/2017,10245504,TC,689638949,2172239,689638949,PN,10480.84,23/02/2017
INSERTED DETAIL,Housing Revenue Account,Assheton Close AP,AGP36,Electricity,0130,63.08,Total Gas & Power Ltd,146631,02/03/2017,10245504,TC,689638949,2172239,689638949,PN,10480.84,23/02/2017
INSERTED DETAIL,Housing Revenue Account,Bennett Court/Warwick Road AP,AGP38,Electricity,0130,206.40,Total Gas & Power Ltd,146631,02/03/2017,10245504,TC,689638949,2172239,689638949,PN,10480.84,23/02/2017
INSERTED DETAIL,Housing Revenue Account,Brookside Pailton AP,AGP40,Electricity,0130,71.75,Total Gas & Power Ltd,146631,02/03/2017,10245504,TC,689638949,2172239,689638949,PN,10480.84,23/02/2017
INSERTED DETAIL,Housing Revenue Account,Clifton Road AP,AGP41,Electricity,0130,23.62,Total Gas & Power Ltd,146631,02/03/2017,10245504,TC,689638949,2172239,689638949,PN,10480.84,23/02/2017
INSERTED DETAIL,Housing Revenue Account,Deepmore Road/Lytham Road AP,AGP42,Electricity,0130,99.86,Total Gas & Power Ltd,146631,02/03/2017,10245504,TC,689638949,2172239,689638949,PN,10480.84,23/02/2017
INSERTED DETAIL,Housing Revenue Account,Edmondson Close Dunchurch AP,AGP44,Electricity,0130,136.30,Total Gas & Power Ltd,146631,02/03/2017,10245504,TC,689638949,2172239,689638949,PN,10480.84,23/02/2017
INSERTED DETAIL,Housing Revenue Account,Featherbed Lane I AP,AGP45,Electricity,0130,293.36,Total Gas & Power Ltd,146631,02/03/2017,10245504,TC,689638949,2172239,689638949,PN,10480.84,23/02/2017
INSERTED DETAIL,Housing Revenue Account,Fox Close AP,AGP47,Electricity,0130,42.37,Total Gas & Power Ltd,146631,02/03/2017,10245504,TC,689638949,2172239,689638949,PN,10480.84,23/02/2017
INSERTED DETAIL,Housing Revenue Account,Great Balance Brinklow AP,AGP48,Electricity,0130,33.23,Total Gas & Power Ltd,146631,02/03/2017,10245504,TC,689638949,2172239,689638949,PN,10480.84,23/02/2017
INSERTED DETAIL,Housing Revenue Account,Harold Cox Place AP,AGP51,Electricity,0130,62.31,Total Gas & Power Ltd,146631,02/03/2017,10245504,TC,689638949,2172239,689638949,PN,10480.84,23/02/2017
INSERTED DETAIL,Housing Revenue Account,Jackson Road I AP,AGP53,Electricity,0130,33.68,Total Gas & Power Ltd,146631,02/03/2017,10245504,TC,689638949,2172239,689638949,PN,10480.84,23/02/2017
INSERTED DETAIL,Housing Revenue Account,Lever Road I AP,AGP57,Electricity,0130,163.51,Total Gas & Power Ltd,146631,02/03/2017,10245504,TC,689638949,2172239,689638949,PN,10480.84,23/02/2017
INSERTED DETAIL,Housing Revenue Account,Meadow Way/Primrose Court AP,AGP58,Electricity,0130,26.63,Total Gas & Power Ltd,146631,02/03/2017,10245504,TC,689638949,2172239,689638949,PN,10480.84,23/02/2017
INSERTED DETAIL,Housing Revenue Account,Norman Road AP,AGP60,Electricity,0130,14.11,Total Gas & Power Ltd,146631,02/03/2017,10245504,TC,689638949,2172239,689638949,PN,10480.84,23/02/2017
INSERTED DETAIL,Housing Revenue Account,Patterdale AP,AGP61,Electricity,0130,30.31,Total Gas & Power Ltd,146631,02/03/2017,10245504,TC,689638949,2172239,689638949,PN,10480.84,23/02/2017
INSERTED DETAIL,Housing Revenue Account,The Kent AP,AGP67,Electricity,0130,61.36,Total Gas & Power Ltd,146631,02/03/2017,10245504,TC,689638949,2172239,689638949,PN,10480.84,23/02/2017
INSERTED DETAIL,Housing Revenue Account,Victoria Street/Lawford Road AP,AGP68,Electricity,0130,17.97,Total Gas & Power Ltd,146631,02/03/2017,10245504,TC,689638949,2172239,689638949,PN,10480.84,23/02/2017
INSERTED DETAIL,Housing Revenue Account,Parkfield Road/Lea Crescent AP,AGP71,Electricity,0130,113.92,Total Gas & Power Ltd,146631,02/03/2017,10245504,TC,689638949,2172239,689638949,PN,10480.84,23/02/2017
INSERTED DETAIL,Housing Revenue Account,Pennington Street/Round Street AP,AGP72,Electricity,0130,161.90,Total Gas & Power Ltd,146631,02/03/2017,10245504,TC,689638949,2172239,689638949,PN,10480.84,23/02/2017
INSERTED DETAIL,Housing Revenue Account,Control Centre CCTV,CCE01,Electricity,0130,563.44,Total Gas & Power Ltd,146631,02/03/2017,10245504,TC,689638949,2172239,689638949,PN,10480.84,23/02/2017
INSERTED DETAIL,Housing Revenue Account,Supervision and Management General,MAN00,Electricity,0130,127.30,Total Gas & Power Ltd,146631,02/03/2017,10245504,TC,689638949,2172239,689638949,PN,10480.84,23/02/2017
INSERTED DETAIL,Housing Revenue Account,Multi-Storey Flats,MSF00,Electricity,0130,1387.27,Total Gas & Power Ltd,146631,02/03/2017,10245504,TC,689638949,2172239,689638949,PN,10480.84,23/02/2017
INSERTED DETAIL,Communities and Homes,Woodside Park,TVR00,Electricity,0130,372.89,Total Gas & Power Ltd,146631,02/03/2017,10245504,TC,689638949,2172239,689638949,PN,10480.84,23/02/2017
INSERTED DETAIL,Corporate Resources,Corporate Property Central Utilities,CPA02,Electricity,0130,2726.41,Total Gas & Power Ltd,146631,02/03/2017,10245505,TC,689638949,2172239,689638949,PN,3187.54,23/02/2017
INSERTED DETAIL,Corporate Resources,Corporate Property Central Utilities,CPA02,Electricity,0130,9636.63,Total Gas & Power Ltd,146631,02/03/2017,10245581,TC,689638949,2172239,689638949,PN,11661.05,27/02/2017
INSERTED DETAIL,Housing Revenue Account,Unplanned Maintenance and Repair,UMR00,Electricity,0130,108.96,Total Gas & Power Ltd,146631,02/03/2017,10245581,TC,689638949,2172239,689638949,PN,11661.05,27/02/2017
INSERTED DETAIL,Housing Revenue Account,Sheltered Housing,AGP00,Electricity,0130,174.35,Total Gas & Power Ltd,146631,23/03/2017,10246204,TC,689638949,2172239,689638949,PN,11706.55,15/03/2017
INSERTED DETAIL,Housing Revenue Account,Alfred Green Close AP,AGP01,Electricity,0130,359.31,Total Gas & Power Ltd,146631,23/03/2017,10246204,TC,689638949,2172239,689638949,PN,11706.55,15/03/2017
INSERTED DETAIL,Housing Revenue Account,Avon Court AP,AGP02,Electricity,0130,244.35,Total Gas & Power Ltd,146631,23/03/2017,10246204,TC,689638949,2172239,689638949,PN,11706.55,15/03/2017
INSERTED DETAIL,Housing Revenue Account,Dickinson Court AP,AGP03,Electricity,0130,368.60,Total Gas & Power Ltd,146631,23/03/2017,10246204,TC,689638949,2172239,689638949,PN,11706.55,15/03/2017
INSERTED DETAIL,Housing Revenue Account,Duffy Place AP,AGP04,Electricity,0130,213.71,Total Gas & Power Ltd,146631,23/03/2017,10246204,TC,689638949,2172239,689638949,PN,11706.55,15/03/2017
INSERTED DETAIL,Housing Revenue Account,Frederick Press Way AP,AGP06,Electricity,0130,405.99,Total Gas & Power Ltd,146631,23/03/2017,10246204,TC,689638949,2172239,689638949,PN,11706.55,15/03/2017
INSERTED DETAIL,Housing Revenue Account,John Thwaites Close AP,AGP08,Electricity,0130,90.36,Total Gas & Power Ltd,146631,23/03/2017,10246204,TC,689638949,2172239,689638949,PN,11706.55,15/03/2017
INSERTED DETAIL,Housing Revenue Account,Mercer Court AP,AGP09,Electricity,0130,310.60,Total Gas & Power Ltd,146631,23/03/2017,10246204,TC,689638949,2172239,689638949,PN,11706.55,15/03/2017
INSERTED DETAIL,Housing Revenue Account,Pettiver Crescent I AP,AGP10,Electricity,0130,263.32,Total Gas & Power Ltd,146631,23/03/2017,10246204,TC,689638949,2172239,689638949,PN,11706.55,15/03/2017
INSERTED DETAIL,Housing Revenue Account,Robotham Close AP,AGP11,Electricity,0130,250.24,Total Gas & Power Ltd,146631,23/03/2017,10246204,TC,689638949,2172239,689638949,PN,11706.55,15/03/2017
INSERTED DETAIL,Housing Revenue Account,Stacey Court AP,AGP12,Electricity,0130,70.85,Total Gas & Power Ltd,146631,23/03/2017,10246204,TC,689638949,2172239,689638949,PN,11706.55,15/03/2017
INSERTED DETAIL,Housing Revenue Account,Stretton Court AP,AGP13,Electricity,0130,99.44,Total Gas & Power Ltd,146631,23/03/2017,10246204,TC,689638949,2172239,689638949,PN,11706.55,15/03/2017
INSERTED DETAIL,Housing Revenue Account,Sun Street/Windsor Street AP,AGP14,Electricity,0130,216.28,Total Gas & Power Ltd,146631,23/03/2017,10246204,TC,689638949,2172239,689638949,PN,11706.55,15/03/2017
INSERTED DETAIL,Housing Revenue Account,Lesley Souter House AP,AGP16,Electricity,0130,552.65,Total Gas & Power Ltd,146631,23/03/2017,10246204,TC,689638949,2172239,689638949,PN,11706.55,15/03/2017
INSERTED DETAIL,Housing Revenue Account,Tanser Court AP,AGP17,Electricity,0130,431.50,Total Gas & Power Ltd,146631,23/03/2017,10246204,TC,689638949,2172239,689638949,PN,11706.55,15/03/2017
INSERTED DETAIL,Housing Revenue Account,Edward Court AP,AGP19,Electricity,0130,252.56,Total Gas & Power Ltd,146631,23/03/2017,10246204,TC,689638949,2172239,689638949,PN,11706.55,15/03/2017
INSERTED DETAIL,Housing Revenue Account,Albert Square AP,AGP20,Electricity,0130,804.95,Total Gas & Power Ltd,146631,23/03/2017,10246204,TC,689638949,2172239,689638949,PN,11706.55,15/03/2017
INSERTED DETAIL,Housing Revenue Account,Eliot Court AP,AGP25,Electricity,0130,236.95,Total Gas & Power Ltd,146631,23/03/2017,10246204,TC,689638949,2172239,689638949,PN,11706.55,15/03/2017
INSERTED DETAIL,Housing Revenue Account,Clare Court Site,AGP27,Electricity,0130,34.04,Total Gas & Power Ltd,146631,23/03/2017,10246204,TC,689638949,2172239,689638949,PN,11706.55,15/03/2017
INSERTED DETAIL,Housing Revenue Account,Alexandra/James Court AP,AGP30,Electricity,0130,167.78,Total Gas & Power Ltd,146631,23/03/2017,10246204,TC,689638949,2172239,689638949,PN,11706.55,15/03/2017
INSERTED DETAIL,Housing Revenue Account,Hirst Close AP,AGP33,Electricity,0130,78.53,Total Gas & Power Ltd,146631,23/03/2017,10246204,TC,689638949,2172239,689638949,PN,11706.55,15/03/2017
INSERTED DETAIL,Housing Revenue Account,Assheton Close AP,AGP36,Electricity,0130,54.23,Total Gas & Power Ltd,146631,23/03/2017,10246204,TC,689638949,2172239,689638949,PN,11706.55,15/03/2017
INSERTED DETAIL,Housing Revenue Account,Bennett Court/Warwick Road AP,AGP38,Electricity,0130,174.45,Total Gas & Power Ltd,146631,23/03/2017,10246204,TC,689638949,2172239,689638949,PN,11706.55,15/03/2017
INSERTED DETAIL,Housing Revenue Account,Brookside Pailton AP,AGP40,Electricity,0130,62.98,Total Gas & Power Ltd,146631,23/03/2017,10246204,TC,689638949,2172239,689638949,PN,11706.55,15/03/2017
INSERTED DETAIL,Housing Revenue Account,Clifton Road AP,AGP41,Electricity,0130,20.91,Total Gas & Power Ltd,146631,23/03/2017,10246204,TC,689638949,2172239,689638949,PN,11706.55,15/03/2017
INSERTED DETAIL,Housing Revenue Account,Deepmore Road/Lytham Road AP,AGP42,Electricity,0130,290.21,Total Gas & Power Ltd,146631,23/03/2017,10246204,TC,689638949,2172239,689638949,PN,11706.55,15/03/2017
INSERTED DETAIL,Housing Revenue Account,Edmondson Close Dunchurch AP,AGP44,Electricity,0130,131.84,Total Gas & Power Ltd,146631,23/03/2017,10246204,TC,689638949,2172239,689638949,PN,11706.55,15/03/2017
INSERTED DETAIL,Housing Revenue Account,Featherbed Lane I AP,AGP45,Electricity,0130,178.39,Total Gas & Power Ltd,146631,23/03/2017,10246204,TC,689638949,2172239,689638949,PN,11706.55,15/03/2017
INSERTED DETAIL,Housing Revenue Account,Fox Close AP,AGP47,Electricity,0130,37.54,Total Gas & Power Ltd,146631,23/03/2017,10246204,TC,689638949,2172239,689638949,PN,11706.55,15/03/2017
INSERTED DETAIL,Housing Revenue Account,Great Balance Brinklow AP,AGP48,Electricity,0130,29.15,Total Gas & Power Ltd,146631,23/03/2017,10246204,TC,689638949,2172239,689638949,PN,11706.55,15/03/2017
INSERTED DETAIL,Housing Revenue Account,Harold Cox Place AP,AGP51,Electricity,0130,67.72,Total Gas & Power Ltd,146631,23/03/2017,10246204,TC,689638949,2172239,689638949,PN,11706.55,15/03/2017
INSERTED DETAIL,Housing Revenue Account,Jackson Road I AP,AGP53,Electricity,0130,29.27,Total Gas & Power Ltd,146631,23/03/2017,10246204,TC,689638949,2172239,689638949,PN,11706.55,15/03/2017
INSERTED DETAIL,Housing Revenue Account,Lever Road I AP,AGP57,Electricity,0130,144.60,Total Gas & Power Ltd,146631,23/03/2017,10246204,TC,689638949,2172239,689638949,PN,11706.55,15/03/2017
INSERTED DETAIL,Housing Revenue Account,Meadow Way/Primrose Court AP,AGP58,Electricity,0130,23.42,Total Gas & Power Ltd,146631,23/03/2017,10246204,TC,689638949,2172239,689638949,PN,11706.55,15/03/2017
INSERTED DETAIL,Housing Revenue Account,Norman Road AP,AGP60,Electricity,0130,12.52,Total Gas & Power Ltd,146631,23/03/2017,10246204,TC,689638949,2172239,689638949,PN,11706.55,15/03/2017
INSERTED DETAIL,Housing Revenue Account,Patterdale AP,AGP61,Electricity,0130,26.62,Total Gas & Power Ltd,146631,23/03/2017,10246204,TC,689638949,2172239,689638949,PN,11706.55,15/03/2017
INSERTED DETAIL,Housing Revenue Account,The Kent AP,AGP67,Electricity,0130,53.39,Total Gas & Power Ltd,146631,23/03/2017,10246204,TC,689638949,2172239,689638949,PN,11706.55,15/03/2017
INSERTED DETAIL,Housing Revenue Account,Victoria Street/Lawford Road AP,AGP68,Electricity,0130,15.77,Total Gas & Power Ltd,146631,23/03/2017,10246204,TC,689638949,2172239,689638949,PN,11706.55,15/03/2017
INSERTED DETAIL,Housing Revenue Account,Parkfield Road/Lea Crescent AP,AGP71,Electricity,0130,99.63,Total Gas & Power Ltd,146631,23/03/2017,10246204,TC,689638949,2172239,689638949,PN,11706.55,15/03/2017
INSERTED DETAIL,Housing Revenue Account,Pennington Street/Round Street AP,AGP72,Electricity,0130,138.70,Total Gas & Power Ltd,146631,23/03/2017,10246204,TC,689638949,2172239,689638949,PN,11706.55,15/03/2017
INSERTED DETAIL,Housing Revenue Account,Control Centre CCTV,CCE01,Electricity,0130,442.80,Total Gas & Power Ltd,146631,23/03/2017,10246204,TC,689638949,2172239,689638949,PN,11706.55,15/03/2017
INSERTED DETAIL,Housing Revenue Account,Supervision and Management General,MAN00,Electricity,0130,277.54,Total Gas & Power Ltd,146631,23/03/2017,10246204,TC,689638949,2172239,689638949,PN,11706.55,15/03/2017
INSERTED DETAIL,Housing Revenue Account,Multi-Storey Flats,MSF00,Electricity,0130,2644.56,Total Gas & Power Ltd,146631,23/03/2017,10246204,TC,689638949,2172239,689638949,PN,11706.55,15/03/2017
INSERTED DETAIL,Communities and Homes,Woodside Park,TVR00,Electricity,0130,321.16,Total Gas & Power Ltd,146631,23/03/2017,10246204,TC,689638949,2172239,689638949,PN,11706.55,15/03/2017
INSERTED DETAIL,Corporate Resources,Corporate Property Central Utilities,CPA02,Electricity,0130,2198.46,Total Gas & Power Ltd,146631,16/03/2017,10246208,TC,689638949,2172239,689638949,PN,2577.42,15/03/2017
INSERTED DETAIL,Corporate Resources,Corporate Property Central Utilities,CPA02,Electricity,0130,8778.54,Total Gas & Power Ltd,146631,16/03/2017,10246224,TC,689638949,2172239,689638949,PN,10618.03,15/03/2017
INSERTED DETAIL,Housing Revenue Account,Unplanned Maintenance and Repair,UMR00,Electricity,0130,94.62,Total Gas & Power Ltd,146631,16/03/2017,10246224,TC,689638949,2172239,689638949,PN,10618.03,15/03/2017
INSERTED DETAIL,Environment and Public Realm,WSU Depot,WDP00,Maintenance of Equipment,0301,1595.00,Weightron Bilanciai Limited,146759,16/03/2017,10245937,TC,458223052,,458223052,PN,1914,07/03/2017
INSERTED DETAIL,Housing Revenue Account,Estate Management,MAN22,Additional Pension Payments,0014,17929.00,WCC Pension Fund,146914,16/03/2017,10246013,NT,,,,PN,17929,08/03/2017
INSERTED DETAIL,Corporate Resources,Retired Employees,RET00,Additional Pension Payments,0014,9802.42,WCC Pension Fund,146914,16/03/2017,10246032,NT,,,,PN,9802.42,09/03/2017
INSERTED DETAIL,Corporate Resources,Retired Employees,RET00,Employers' Superannuation Contribution,0002,45083.33,WCC Pension Fund,146914,23/03/2017,10246397,NT,,,,PN,45083.33,20/03/2017
INSERTED DETAIL,Corporate Resources,Change Team,BTR50,Additional Pension Payments,0014,19760.37,WCC Pension Fund,146914,30/03/2017,10246636,NT,,,,PN,19760.37,27/03/2017
INSERTED DETAIL,Corporate Resources,Town Hall,OFF00,New Equipment,0300,735.00,Evac+Chair International Ltd,146921,02/03/2017,10245155,TC,927258012,,927258012,PI,882,13/02/2017
INSERTED DETAIL,Corporate Resources,Human Resources Centralised Services,RES31,Training fees,0011,4750.00,Learning Nexus Ltd,146957,23/03/2017,10246376,TC,466441339,2271707,466441339,PN,5700,20/03/2017
INSERTED DETAIL,Corporate Resources,Corporate Property R&M,CPA01,R&M External Contractors,0100,1200.00,General Asphalte Company,147047,30/03/2017,10246627,CS,487147316,2294585,487147316,PI,1440,27/03/2017
INSERTED DETAIL,Environment and Public Realm,Domestic Waste Collection,WWC00,External Contractor & Operator,0742,600.00,James Baxter Haulage Ltd,147159,02/03/2017,10245499,TC,620070986,,620070986,PN,720,23/02/2017
INSERTED DETAIL,Environment and Public Realm,Domestic Waste Collection,WWC00,External Contractor & Operator,0742,450.00,James Baxter Haulage Ltd,147159,30/03/2017,10246552,TC,620070986,,620070986,PN,540,23/03/2017
INSERTED DETAIL,Environment and Public Realm,Domestic Waste Collection,WWC00,External Contractor & Operator,0742,450.00,James Baxter Haulage Ltd,147159,30/03/2017,10246787,TC,620070986,,620070986,PN,540,29/03/2017
INSERTED DETAIL,Corporate Resources,Corporate Property R&M,CPA01,R&M External Contractors,0100,1330.00,Condair plc,147263,02/03/2017,10245319,CS,358496894,358496894,358496894,PI,1596,20/02/2017
INSERTED DETAIL,Capital Corporate Resources,Corporate Property Enhancements,CPE00,Capital Contract Payments,5000,8072.00,Arden Construction Ltd,147430,23/03/2017,10246027,CS,589378956,2722631,589378956,PI,9686.4,08/03/2017
INSERTED DETAIL,Capital Corporate Resources,Corporate Property Enhancements,CPE00,Capital Contract Payments,5000,33076.81,Arden Construction Ltd,147430,23/03/2017,10246028,CS,589378956,2722631,589378956,PI,39692.17,08/03/2017
INSERTED DETAIL,Capital Corporate Resources,Corporate Property Enhancements,CPE00,Capital Contract Payments,5000,6467.85,Arden Construction Ltd,147430,23/03/2017,10246029,CS,589378956,2722631,589378956,PI,7761.42,08/03/2017
INSERTED DETAIL,Capital Corporate Resources,Corporate Property Enhancements,CPE00,Capital Contract Payments,5000,6390.00,Arden Construction Ltd,147430,23/03/2017,10246030,CS,589378956,2722631,589378956,PI,7668,08/03/2017
INSERTED DETAIL,Growth and Investment,AGM Education,AGM03,Development Activities,0450,522.00,Tailor Made Signs & Embroidery LLP,147659,30/03/2017,10246698,TC,,,,PN,626.4,28/03/2017
INSERTED DETAIL,Corporate Resources,General Financial Services,GFS00,External Contractor & Operator,0742,4986.30,Tradition (UK) Ltd,147842,09/03/2017,10245750,TC,365463927,,365463927,PN,4986.3,02/03/2017
INSERTED DETAIL,Environment and Public Realm,Street Furniture,HIG01,External Contractor & Operator,0742,510.00,Traffic Technology Ltd,147941,02/03/2017,10245740,TC,852059134,5257272,852059134,PI,612,01/03/2017
INSERTED DETAIL,Environment and Public Realm,Street Furniture,HIG01,External Contractor & Operator,0742,440.00,Traffic Technology Ltd,147941,02/03/2017,10245741,TC,852059134,5257272,852059134,PI,528,01/03/2017
INSERTED DETAIL,Capital Growth and Investment,Queen's Diamond Jubilee Leisure Centre Project,LEI03,Capital Contract Payments,5000,22000.00,Shepherd Construction Ltd,148014,30/03/2017,10246759,CS,450761359,201860,450761359,PN,26400,29/03/2017
INSERTED DETAIL,Communities and Homes,ITC & Support Services,CIS10,Software Maintenance,0374,3000.00,NSC Legacydata Solutions Ltd,148083,23/03/2017,10246408,TC,123604253,7775842,123604253,PI,3600,20/03/2017
INSERTED DETAIL,Environment and Public Realm,Safety and Resilience,EPL00,Health and Safety Costs,0449,1407.60,Team Prevent UK Ltd,148151,23/03/2017,10246442,TC,883064608,,883064608,PN,1407.6,21/03/2017
INSERTED DETAIL,Environment and Public Realm,Parks,PKS00,Maintenance of Equipment,0301,1307.40,Russell Leisure Limited,148246,30/03/2017,10246553,TC,398125521,SC162280,398125521,PI,1568.88,23/03/2017
INSERTED DETAIL,Environment and Public Realm,Grounds Maintenance,WGM00,New Equipment,0300,10730.76,Reactec Ltd,148291,02/03/2017,10244731,TC,804120877,221428,804120877,PI,12876.91,02/02/2017
INSERTED DETAIL,Housing Revenue Account,Unplanned Maintenance and Repair,UMR00,R&M External Contractors,0100,427.39,AKW Medicare Ltd,148464,23/03/2017,10245856,TC,1047446,2764920,1047446,PN,512.87,06/03/2017
INSERTED DETAIL,Capital Housing Revenue Account,Disabled Adaptations,HCR01,Capital Contract Payments,5000,554.65,AKW Medicare Ltd,148464,09/03/2017,10245928,TC,1047446,2764920,1047446,PN,665.58,06/03/2017
INSERTED DETAIL,Capital Housing Revenue Account,Disabled Adaptations,HCR01,Capital Contract Payments,5000,554.65,AKW Medicare Ltd,148464,23/03/2017,10246406,TC,1047446,2764920,1047446,PN,665.58,20/03/2017
INSERTED DETAIL,Environment and Public Realm,Section 106 Grounds Maintenance,PKS16,External Contractor & Operator,0742,432.00,J P Landscapes & Construction Ltd,148502,09/03/2017,10245629,CS,844237818,4840565,844 2378 18,PI,518.4,27/02/2017
INSERTED DETAIL,Capital Environment and Public Realm,Grent Central Walk Trackbed Replacement,LEI20,Capital Contract Payments,5000,27287.48,J P Landscapes & Construction Ltd,148502,02/03/2017,10245636,CS,844237818,4840565,844 2378 18,PN,32744.97,28/02/2017
INSERTED DETAIL,Capital Environment and Public Realm,Hollowell Way play area refurbishment,LEI21,Capital Contract Payments,5000,1512.00,Kova Landscape Ltd,148635,02/03/2017,10244621,TC,142710150,8211318,142710150,PI,1814.4,31/01/2017
INSERTED DETAIL,Environment and Public Realm,Parks,PKS00,External Contractor & Operator,0742,4350.00,Red Kite Network Limited,148744,09/03/2017,10245735,TC,,8169295,,PI,5220,01/03/2017
INSERTED DETAIL,Housing Revenue Account,Gas Heating Systems,UMR01,R&M External Contractors,0100,910.11,Robert Heath Heating Ltd,148858,02/03/2017,10245095,CS,927490989,1773699,927 4909 89,PN,1719.23,13/02/2017
INSERTED DETAIL,Housing Revenue Account,Repairs and Maintenance - Void works,UMR09,R&M External Contractors,0100,522.58,Robert Heath Heating Ltd,148858,02/03/2017,10245095,CS,927490989,1773699,927 4909 89,PN,1719.23,13/02/2017
INSERTED DETAIL,Housing Revenue Account,Gas Heating Systems,UMR01,R&M External Contractors,0100,978.67,Robert Heath Heating Ltd,148858,16/03/2017,10246122,CS,927490989,1773699,927 4909 89,PN,1648.84,10/03/2017
INSERTED DETAIL,Housing Revenue Account,Repairs and Maintenance - Void works,UMR09,R&M External Contractors,0100,395.36,Robert Heath Heating Ltd,148858,16/03/2017,10246122,CS,927490989,1773699,927 4909 89,PN,1648.84,10/03/2017
INSERTED DETAIL,Housing Revenue Account,Gas Heating Systems,UMR01,R&M External Contractors,0100,37099.78,Robert Heath Heating Ltd,148858,16/03/2017,10246123,CS,927490989,1773699,927 4909 89,PN,44519.74,10/03/2017
INSERTED DETAIL,Environment and Public Realm,Land Drainage General,LDR00,External Contractor & Operator,0742,787.61,LC Packaging Ltd,148888,09/03/2017,10245822,TC,363523362,1558016,363523362,PI,945.13,02/03/2017
INSERTED DETAIL,Communities and Homes,Central Business Support Services,CSS15,Photocopying,0354,1210.58,Xerox Finance Ltd,148940,09/03/2017,10245858,TC,,,,PN,1452.7,06/03/2017
INSERTED DETAIL,Housing Revenue Account,Repairs and Maintenance - Void works,UMR09,R&M External Contractors,0100,1030.00,Superclean Services Wothorpe,149153,02/03/2017,10245346,TC,218492943,,218492943,PN,1236,20/02/2017
INSERTED DETAIL,Environment and Public Realm,Crematorium,CRM00,Building cleaning,0170,864.37,Superclean Services Wothorpe,149153,02/03/2017,10245656,TC,218492943,,218492943,PN,7086.49,28/02/2017
INSERTED DETAIL,Corporate Resources,Town Hall,OFF00,Building cleaning,0170,4414.18,Superclean Services Wothorpe,149153,02/03/2017,10245656,TC,218492943,,218492943,PN,7086.49,28/02/2017
INSERTED DETAIL,Environment and Public Realm,Parks,PKS00,Building cleaning,0170,210.41,Superclean Services Wothorpe,149153,02/03/2017,10245656,TC,218492943,,218492943,PN,7086.49,28/02/2017
INSERTED DETAIL,Environment and Public Realm,WSU Depot,WDP00,Building cleaning,0170,416.44,Superclean Services Wothorpe,149153,02/03/2017,10245656,TC,218492943,,218492943,PN,7086.49,28/02/2017
INSERTED DETAIL,Housing Revenue Account,Property Maintenance,MAN23,Building cleaning,0170,486.58,Superclean Services Wothorpe,149153,09/03/2017,10245657,TC,218492943,,218492943,PN,583.9,28/02/2017
INSERTED DETAIL,Environment and Public Realm,Town Centre Public Conveniences,PCS00,Building cleaning,0170,2898.22,Superclean Services Wothorpe,149153,02/03/2017,10245658,TC,218492943,,218492943,PN,3477.86,28/02/2017
INSERTED DETAIL,Housing Revenue Account,Sheltered Housing,AGP00,Building cleaning,0170,12467.30,Superclean Services Wothorpe,149153,09/03/2017,10245691,TC,218492943,,218492943,PN,20136.08,28/02/2017
INSERTED DETAIL,Communities and Homes,Housing Options Team,HOT00,Building cleaning,0170,118.37,Superclean Services Wothorpe,149153,09/03/2017,10245691,TC,218492943,,218492943,PN,20136.08,28/02/2017
INSERTED DETAIL,Housing Revenue Account,Estate Management,MAN22,Building cleaning,0170,2685.30,Superclean Services Wothorpe,149153,09/03/2017,10245691,TC,218492943,,218492943,PN,20136.08,28/02/2017
INSERTED DETAIL,Housing Revenue Account,Multi-Storey Flats,MSF00,Building cleaning,0170,1509.10,Superclean Services Wothorpe,149153,09/03/2017,10245691,TC,218492943,,218492943,PN,20136.08,28/02/2017
INSERTED DETAIL,Communities and Homes,Housing Options Team,HOT00,Building cleaning,0170,118.37,Superclean Services Wothorpe,149153,30/03/2017,10246748,TC,218492943,,218492943,PN,20136.08,29/03/2017
INSERTED DETAIL,Housing Revenue Account,Estate Management,MAN22,Building cleaning,0170,15152.60,Superclean Services Wothorpe,149153,30/03/2017,10246748,TC,218492943,,218492943,PN,20136.08,29/03/2017
INSERTED DETAIL,Housing Revenue Account,Multi-Storey Flats,MSF00,Building cleaning,0170,1509.10,Superclean Services Wothorpe,149153,30/03/2017,10246748,TC,218492943,,218492943,PN,20136.08,29/03/2017
INSERTED DETAIL,Environment and Public Realm,Crematorium,CRM00,Building cleaning,0170,864.38,Superclean Services Wothorpe,149153,30/03/2017,10246750,TC,218492943,,218492943,PN,7086.49,29/03/2017
INSERTED DETAIL,Corporate Resources,Town Hall,OFF00,Building cleaning,0170,4414.18,Superclean Services Wothorpe,149153,30/03/2017,10246750,TC,218492943,,218492943,PN,7086.49,29/03/2017
INSERTED DETAIL,Environment and Public Realm,Parks,PKS00,Building cleaning,0170,210.41,Superclean Services Wothorpe,149153,30/03/2017,10246750,TC,218492943,,218492943,PN,7086.49,29/03/2017
INSERTED DETAIL,Environment and Public Realm,WSU Depot,WDP00,Building cleaning,0170,416.44,Superclean Services Wothorpe,149153,30/03/2017,10246750,TC,218492943,,218492943,PN,7086.49,29/03/2017
INSERTED DETAIL,Housing Revenue Account,Property Maintenance,MAN23,Building cleaning,0170,486.58,Superclean Services Wothorpe,149153,30/03/2017,10246751,TC,218492943,,218492943,PN,583.9,29/03/2017
INSERTED DETAIL,Environment and Public Realm,Town Centre Public Conveniences,PCS00,Building cleaning,0170,2898.22,Superclean Services Wothorpe,149153,30/03/2017,10246752,TC,218492943,,218492943,PN,3477.86,29/03/2017
INSERTED DETAIL,Housing Revenue Account,Miscellaneous Unplanned Maintenance and Repair,UMR17,R&M External Contractors,0100,653.30,Arden Health and Safety,149273,09/03/2017,10245934,TC,,,,PN,653.3,06/03/2017
INSERTED DETAIL,Corporate Resources,Corporate Property R&M,CPA01,R&M External Contractors,0100,100.00,Arden Health and Safety,149273,09/03/2017,10246006,TC,,,,PN,677.55,08/03/2017
INSERTED DETAIL,Capital Housing Revenue Account,Fire Risk Prevention Works,HCE18,Capital Contract Payments,5000,577.55,Arden Health and Safety,149273,09/03/2017,10246006,TC,,,,PN,677.55,08/03/2017
INSERTED DETAIL,Corporate Resources,Corporate Property R&M,CPA01,R&M External Contractors,0100,900.00,Arden Health and Safety,149273,23/03/2017,10246286,TC,,,,PN,900,16/03/2017
INSERTED DETAIL,Capital Housing Revenue Account,Fire Risk Prevention Works,HCE18,Capital Contract Payments,5000,1039.59,Arden Health and Safety,149273,30/03/2017,10246602,TC,,,,PN,1247.51,24/03/2017
INSERTED DETAIL,Corporate Resources,Corporate Property R&M,CPA01,R&M External Contractors,0100,2275.00,Arden Health and Safety,149273,30/03/2017,10246679,TC,,,,PN,2275,28/03/2017
INSERTED DETAIL,Housing Revenue Account,Miscellaneous Unplanned Maintenance and Repair,UMR17,R&M External Contractors,0100,653.30,Arden Health and Safety,149273,30/03/2017,10246680,TC,,,,PN,653.3,28/03/2017
INSERTED DETAIL,Housing Revenue Account,Edmondson Close Dunchurch AP,AGP44,New Equipment,0300,1104.00,Steve Cane Carpets,149306,30/03/2017,10246790,TC,225194810,,225194810,PI,1324.8,29/03/2017
INSERTED DETAIL,Environment and Public Realm,Garage,WVR00,Materials,0303,731.80,Tom Tom International BV,149311,23/03/2017,10246271,TC,273433560,,273433560,PN,878.16,16/03/2017
INSERTED DETAIL,Housing Revenue Account,Miscellaneous Unplanned Maintenance and Repair,UMR17,R&M External Contractors,0100,46.00,Close Circuit Security Services Ltd,149426,02/03/2017,10245509,TC,695360895,3543850,695360895,PN,577.84,24/02/2017
INSERTED DETAIL,Housing Revenue Account,Control Centre CCTV,CCE01,Maintenance of Equipment,0301,435.53,Close Circuit Security Services Ltd,149426,02/03/2017,10245509,TC,695360895,3543850,695360895,PN,577.84,24/02/2017
INSERTED DETAIL,Housing Revenue Account,Control Centre CCTV,CCE01,Maintenance of Equipment,0301,2712.66,Close Circuit Security Services Ltd,149426,09/03/2017,10245998,TC,695360895,3543850,695360895,PN,3255.19,08/03/2017
INSERTED DETAIL,Housing Revenue Account,Control Centre CCTV,CCE01,Maintenance of Equipment,0301,3470.61,Close Circuit Security Services Ltd,149426,30/03/2017,10246595,TC,695360895,3543850,695360895,PN,4164.73,24/03/2017
INSERTED DETAIL,Housing Revenue Account,Control Centre CCTV,CCE01,Maintenance of Equipment,0301,2666.66,Close Circuit Security Services Ltd,149426,30/03/2017,10246597,TC,695360895,3543850,695360895,PN,3199.99,24/03/2017
INSERTED DETAIL,Environment and Public Realm,Crematorium,CRM00,Organist Fees,0414,1475.00,Tracey Daulman,149686,02/03/2017,10245729,TC,,,,PN,1475,01/03/2017
INSERTED DETAIL,Environment and Public Realm,Crematorium,CRM00,Organist Fees,0414,1515.00,Tracey Daulman,149686,30/03/2017,10246648,TC,,,,PN,1515,27/03/2017
INSERTED DETAIL,Environment and Public Realm,Crematorium,CRM00,R&M External Contractors,0100,427.00,Hamworthy Heating Ltd,149707,23/03/2017,10246197,TC,,,,PI,512.4,14/03/2017
INSERTED DETAIL,Environment and Public Realm,Crematorium,CRM00,R&M External Contractors,0100,685.04,Hamworthy Heating Ltd,149707,23/03/2017,10246198,TC,,,,PI,822.05,14/03/2017
INSERTED DETAIL,Environment and Public Realm,Regulatory Services,REG00,External Legal Costs,0741,950.00,Mr David Armstrong,149802,09/03/2017,10245853,TC,185367474,,185367474,PN,1140,06/03/2017
INSERTED DETAIL,Environment and Public Realm,Regulatory Services,REG00,External Legal Costs,0741,750.00,Mr David Armstrong,149802,09/03/2017,10245854,TC,185367474,,185367474,PN,900,06/03/2017
INSERTED DETAIL,Capital Housing Revenue Account,Heating Upgrades,HIM01,Capital Contract Payments,5000,1622.74,PTS Rugby,149845,23/03/2017,10246280,TC,408556737,,408556737,PN,1947.29,16/03/2017
INSERTED DETAIL,Capital Housing Revenue Account,Heating Upgrades,HIM01,Capital Contract Payments,5000,834.18,PTS Rugby,149845,23/03/2017,10246281,TC,408556737,,408556737,PN,1001.02,16/03/2017
INSERTED DETAIL,Capital Housing Revenue Account,Heating Upgrades,HIM01,Capital Contract Payments,5000,764.92,PTS Rugby,149845,23/03/2017,10246282,TC,408556737,,408556737,PN,917.9,16/03/2017
INSERTED DETAIL,Capital Housing Revenue Account,Heating Upgrades,HIM01,Capital Contract Payments,5000,811.37,PTS Rugby,149845,23/03/2017,10246283,TC,408556737,,408556737,PN,973.64,16/03/2017
INSERTED DETAIL,Capital Housing Revenue Account,Heating Upgrades,HIM01,Capital Contract Payments,5000,1068.49,PTS Rugby,149845,30/03/2017,10246665,TC,408556737,,408556737,PN,1282.19,27/03/2017
INSERTED DETAIL,Capital Housing Revenue Account,Heating Upgrades,HIM01,Capital Contract Payments,5000,1019.74,PTS Rugby,149845,30/03/2017,10246666,TC,408556737,,408556737,PN,1223.69,27/03/2017
INSERTED DETAIL,Environment and Public Realm,Grounds Maintenance,WGM00,External Contractor & Operator,0742,2400.00,Alive Oak Design & Restoration,149976,09/03/2017,10245669,TC,,,,PI,2400,28/02/2017
INSERTED DETAIL,Capital Housing Revenue Account,Kitchen Modifications,HIK10,Capital Contract Payments,5000,17225.25,Moores Furniture,150018,23/03/2017,10246378,TC,613366162,1083749,613366162,PN,20670.3,20/03/2017
INSERTED DETAIL,Environment and Public Realm,General Administration,WAD00,Training fees,0011,520.00,Symmons Madge Associates Ltd,150181,02/03/2017,10245551,TC,540856832,6576247,540856832,PI,624,27/02/2017
INSERTED DETAIL,Capital Communities and Homes,Business Continuity - supporting technology update,CMP32,IT Capital Expenditure,5025,3264.20,DACT Services Ltd,150187,30/03/2017,10246767,TC,942228432,6721316,942228432,PI,3917.04,29/03/2017
INSERTED DETAIL,Growth and Investment,The Benn Hall,BHL00,Purchases for Resale,0305,592.60,Molson Coors Brewing Company (UK) Ltd,150227,16/03/2017,10246065,TC,,26018,,PN,711.11,10/03/2017
INSERTED DETAIL,Growth and Investment,The Benn Hall,BHL00,Purchases for Resale,0305,492.03,Molson Coors Brewing Company (UK) Ltd,150227,23/03/2017,10246317,TC,,26018,,PN,590.44,17/03/2017
INSERTED DETAIL,Growth and Investment,The Benn Hall,BHL00,Purchases for Resale,0305,1210.83,Molson Coors Brewing Company (UK) Ltd,150227,30/03/2017,10246581,TC,,26018,,PN,1452.99,24/03/2017
INSERTED DETAIL,Growth and Investment,Play Projects (revenue),LSD09,Development Activities,0450,530.00,King Bounce-A-Lot,150246,02/03/2017,10245710,TC,855360124,,855360124,PN,530,01/03/2017
INSERTED DETAIL,Capital Housing Revenue Account,Heating Upgrades,HIM01,Capital Contract Payments,5000,2019.54,MD Building Services Ltd,150263,09/03/2017,10245578,CS,712926342,3556815,712926342,PN,2423.45,27/02/2017
INSERTED DETAIL,Capital Housing Revenue Account,Heating Upgrades,HIM01,Capital Contract Payments,5000,4418.38,MD Building Services Ltd,150263,09/03/2017,10245579,CS,712926342,3556815,712926342,PN,5302.06,27/02/2017
INSERTED DETAIL,Capital Housing Revenue Account,Heating Upgrades,HIM01,Capital Contract Payments,5000,2244.94,MD Building Services Ltd,150263,09/03/2017,10246002,CS,712926342,3556815,712926342,PN,2693.93,08/03/2017
INSERTED DETAIL,Capital Housing Revenue Account,Heating Upgrades,HIM01,Capital Contract Payments,5000,4643.78,MD Building Services Ltd,150263,30/03/2017,10246599,CS,712926342,3556815,712926342,PN,5572.54,24/03/2017
INSERTED DETAIL,Capital Housing Revenue Account,Heating Upgrades,HIM01,Capital Contract Payments,5000,2244.00,MD Building Services Ltd,150263,30/03/2017,10246600,CS,712926342,3556815,712926342,PN,2692.8,24/03/2017
INSERTED DETAIL,Corporate Resources,Corporate Property R&M,CPA01,R&M External Contractors,0100,1490.00,Utilitywise Corporate,150269,30/03/2017,10246409,TC,,,,PI,2316,20/03/2017
INSERTED DETAIL,Housing Revenue Account,Unplanned Maintenance and Repair,UMR00,R&M External Contractors,0100,440.00,Utilitywise Corporate,150269,30/03/2017,10246409,TC,,,,PI,2316,20/03/2017
INSERTED DETAIL,Environment and Public Realm,Crematorium,CRM00,Purchases for Resale,0305,867.00,Eternity Crystal LLP,150308,16/03/2017,10246108,TC,,OC333679,,PN,1040.4,10/03/2017
INSERTED DETAIL,Communities and Homes,Housing Options Team,HOT00,Other Miscellaneous Expenses,0444,700.00,Boughton Removals,150311,23/03/2017,10246401,TC,,,,PN,700,20/03/2017
INSERTED DETAIL,Corporate Resources,Corporate Assurance,RES40,Consultancy Costs,0740,2450.00,TIAA,150337,23/03/2017,10245910,TC,792453014,,792453014,PN,2940,06/03/2017
INSERTED DETAIL,Growth and Investment,The Benn Hall,BHL00,Events Tickets - Zero Rated,1405,2203.00,Five Star Entertainment,150387,16/03/2017,10246042,TC,,,,PN,2203,09/03/2017
INSERTED DETAIL,Capital Communities and Homes,ICT refresh programme - Infrastructure,CMP01,IT Capital Expenditure,5025,3040.00,Axiom Secure IT Ltd,150391,02/03/2017,10245482,TC,169345576,8649567,169345576,PI,3648,22/02/2017
INSERTED DETAIL,Environment and Public Realm,Trade Waste Collection,WWC01,Vehicle Repair and Maintenance,0200,590.47,Rygor Commercials,150457,02/03/2017,10245465,TC,4230072,1884237,4230072,PI,708.56,22/02/2017
INSERTED DETAIL,Environment and Public Realm,Section 106 Grounds Maintenance,PKS16,External Contractor & Operator,0742,4634.76,Ellesmere Playground Products Ltd,150499,23/03/2017,10246292,CS,790304342,3650060,790304342,PI,5561.71,16/03/2017
INSERTED DETAIL,Capital Corporate Resources,Carbon Management Plan,LCF01,Capital Contract Payments,5000,1270.78,Intrinsic Power,150567,09/03/2017,10244376,TC,827821023,4501938,827821023,PN,1524.94,20/01/2017
INSERTED DETAIL,Capital Corporate Resources,Carbon Management Plan,LCF01,Capital Contract Payments,5000,2446.56,Intrinsic Power,150567,09/03/2017,10245373,TC,827821023,4501938,827821023,PN,2935.87,20/02/2017
INSERTED DETAIL,Capital Corporate Resources,Corporate Property Enhancements,CPE00,Capital Contract Payments,5000,14000.00,Secure-a-Field,150908,30/03/2017,10246349,CS,975782067,8690958,975782067,PI,16800,20/03/2017
INSERTED DETAIL,Housing Revenue Account,Lift maintenance,UMR14,R&M External Contractors,0100,2655.00,Lift & Engineering Services Ltd,150984,09/03/2017,10245876,TC,377355519,1913516,377355519,PN,3186,06/03/2017
INSERTED DETAIL,Environment and Public Realm,Grounds Maintenance,WGM00,External Contractor & Operator,0742,5900.00,Glendale Grounds Management Ltd,151025,02/03/2017,10245635,TC,203324952,,203324952,PN,7080,28/02/2017
INSERTED DETAIL,Environment and Public Realm,TREE WORKS,WGM01,External Contractor & Operator,0742,10185.29,Glendale Grounds Management Ltd,151025,09/03/2017,10245700,TC,203324952,,203324952,PN,12222.35,01/03/2017
INSERTED DETAIL,Environment and Public Realm,TREE WORKS,WGM01,External Contractor & Operator,0742,9267.80,Glendale Grounds Management Ltd,151025,09/03/2017,10245990,TC,203324952,,203324952,PN,11121.36,08/03/2017
INSERTED DETAIL,Environment and Public Realm,TREE WORKS,WGM01,External Contractor & Operator,0742,2007.42,Glendale Grounds Management Ltd,151025,23/03/2017,10246483,TC,203324952,,203324952,PN,2408.9,22/03/2017
INSERTED DETAIL,Environment and Public Realm,TREE WORKS,WGM01,External Contractor & Operator,0742,6726.06,Glendale Grounds Management Ltd,151025,30/03/2017,10246737,TC,203324952,,203324952,PN,8071.27,29/03/2017
INSERTED DETAIL,Growth and Investment,Economic Development General,ECD00,Borough Local Plan,0452,6691.35,David Lock Associates,151061,02/03/2017,10238798,TC,486059905,2422692,486059905,PI,8029.62,16/08/2016
INSERTED DETAIL,Capital Communities and Homes,ICT refresh programme - Infrastructure,CMP01,IT Capital Expenditure,5025,2700.00,PCS Business Systems Ltd,151097,23/03/2017,10245561,TC,918599762,3082062,918599762,PI,3240,27/02/2017
INSERTED DETAIL,Capital Communities and Homes,ICT refresh programme - Infrastructure,CMP01,IT Capital Expenditure,5025,1700.00,PCS Business Systems Ltd,151097,30/03/2017,10246731,TC,918599762,3082062,918599762,PI,2040,29/03/2017
INSERTED DETAIL,Housing Revenue Account,Supervision and Management General,MAN00,Training fees,0011,532.00,Ms Suzanne Lazarus,151130,16/03/2017,10246087,TC,,,,PN,532,10/03/2017
INSERTED DETAIL,Housing Revenue Account,Laundry equipment maintenance,UMR15,R&M External Contractors,0100,2782.00,JLA Ltd,151207,16/03/2017,10246193,TC,566894869,1094178,566894869,PN,3338.4,14/03/2017
INSERTED DETAIL,Housing Revenue Account,Laundry equipment maintenance,UMR15,R&M External Contractors,0100,2782.00,JLA Ltd,151207,30/03/2017,10246601,TC,566894869,1094178,566894869,PN,3338.4,24/03/2017
INSERTED DETAIL,Growth and Investment,Art Gallery and Museum,AGM00,Childcare vouchers admin fee,0007,18.10,Busy Bees Benefits Ltd,151230,09/03/2017,10245935,NT,,6758298,,PN,3390.95,07/03/2017
INSERTED DETAIL,Communities and Homes,ITC & Support Services,CIS10,Childcare vouchers admin fee,0007,4.96,Busy Bees Benefits Ltd,151230,09/03/2017,10245935,NT,,6758298,,PN,3390.95,07/03/2017
INSERTED DETAIL,Corporate Resources,Council Tax and NNDR Collection,CTX01,Childcare vouchers admin fee,0007,22.12,Busy Bees Benefits Ltd,151230,09/03/2017,10245935,NT,,6758298,,PN,3390.95,07/03/2017
INSERTED DETAIL,Corporate Resources,Legal Services,DEM20,Childcare vouchers admin fee,0007,1.25,Busy Bees Benefits Ltd,151230,09/03/2017,10245935,NT,,6758298,,PN,3390.95,07/03/2017
INSERTED DETAIL,Growth and Investment,Economic Development General,ECD00,Childcare vouchers admin fee,0007,9.72,Busy Bees Benefits Ltd,151230,09/03/2017,10245935,NT,,6758298,,PN,3390.95,07/03/2017
INSERTED DETAIL,Communities and Homes,WTHEIP - Warwickshire Together Homelessness Early Intervention Project,HIP00,Childcare vouchers admin fee,0007,9.72,Busy Bees Benefits Ltd,151230,09/03/2017,10245935,NT,,6758298,,PN,3390.95,07/03/2017
INSERTED DETAIL,Communities and Homes,Housing Strategy & Enabling,HSE00,Childcare vouchers admin fee,0007,2.00,Busy Bees Benefits Ltd,151230,09/03/2017,10245935,NT,,6758298,,PN,3390.95,07/03/2017
INSERTED DETAIL,Housing Revenue Account,Estate Management,MAN22,Childcare vouchers admin fee,0007,9.72,Busy Bees Benefits Ltd,151230,09/03/2017,10245935,NT,,6758298,,PN,3390.95,07/03/2017
INSERTED DETAIL,Growth and Investment,Planning General/Income,PLN00,Childcare vouchers admin fee,0007,14.52,Busy Bees Benefits Ltd,151230,09/03/2017,10245935,NT,,6758298,,PN,3390.95,07/03/2017
INSERTED DETAIL,Environment and Public Realm,Regulatory Services,REG00,Childcare vouchers admin fee,0007,11.32,Busy Bees Benefits Ltd,151230,09/03/2017,10245935,NT,,6758298,,PN,3390.95,07/03/2017
INSERTED DETAIL,Corporate Resources,Financial Services,RES10,Childcare vouchers admin fee,0007,16.28,Busy Bees Benefits Ltd,151230,09/03/2017,10245935,NT,,6758298,,PN,3390.95,07/03/2017
INSERTED DETAIL,Growth and Investment,Visitor Centre,VSC00,Childcare vouchers admin fee,0007,9.72,Busy Bees Benefits Ltd,151230,09/03/2017,10245935,NT,,6758298,,PN,3390.95,07/03/2017
INSERTED DETAIL,Outside portfolio expenditure,User Balance Sheet Cost Centre,BSU,Revenue Section Agreements,9865,2000.00,Long Lawford PC Offsite Rec Maintenance,151232,30/03/2017,10246675,TC,,,,PN,2000,28/03/2017
INSERTED DETAIL,Corporate Resources,Property Repairs Team Vehicle,VHC01,Vehicle Running Costs,0201,285.00,Pentagon Corporate Fleet,151268,30/03/2017,10246568,TC,219552305,4120259,219552305,PI,23098.74,24/03/2017
INSERTED DETAIL,Corporate Resources,Property Repairs Team Vehicle,VHC01,Miscellaneous Capital Expenditure,5020,19011.46,Pentagon Corporate Fleet,151268,30/03/2017,10246568,TC,219552305,4120259,219552305,PI,23098.74,24/03/2017
INSERTED DETAIL,Housing Revenue Account,Unplanned Maintenance and Repair,UMR00,Vehicle Running Costs,0201,285.00,Pentagon Corporate Fleet,151268,30/03/2017,10246569,TC,219552305,4120259,219552305,PI,25228.74,24/03/2017
INSERTED DETAIL,Corporate Resources,Property Repairs Team Vehicle,VHC01,Miscellaneous Capital Expenditure,5020,20786.45,Pentagon Corporate Fleet,151268,30/03/2017,10246569,TC,219552305,4120259,219552305,PI,25228.74,24/03/2017
INSERTED DETAIL,Capital Environment and Public Realm,Hall of Fame Exhibition,HOF00,IT Capital Expenditure,5025,1291.50,K3 Retail Systems Group Ltd,151287,30/03/2017,10241655,TC,696356287,,696356287,PI,1549.8,03/11/2016
INSERTED DETAIL,Capital Environment and Public Realm,Hall of Fame Exhibition,HOF00,IT Capital Expenditure,5025,1291.50,K3 Retail Systems Group Ltd,151287,30/03/2017,10244490,TC,696356287,,696356287,PI,1549.8,25/01/2017
INSERTED DETAIL,Capital Environment and Public Realm,Hall of Fame Exhibition,HOF00,Capital Contract Payments,5000,3736.74,Mather & Co Ltd,151316,16/03/2017,10243790,TC,651353159,3073797,651353159,PN,4484.09,06/01/2017
INSERTED DETAIL,Environment and Public Realm,Crime and Disorder Activities,CAD00,Development Activities,0450,900.00,Buddi Ltd,151339,02/03/2017,10245030,TC,867696451,5308826,867696451,PI,1080,09/02/2017
INSERTED DETAIL,Environment and Public Realm,Violence,CAD01,External Contractor & Operator,0742,641.79,National Offender Management Service,151347,09/03/2017,10245508,TC,,,,PN,641.79,23/02/2017
INSERTED DETAIL,Capital Housing Revenue Account,Carbon Management Plan (HRA),LCF02,Capital Contract Payments,5000,750.00,Energise Ltd,151381,02/03/2017,10245212,TC,,,,PI,900,14/02/2017
INSERTED DETAIL,Capital Corporate Resources,Carbon Management Plan,LCF01,Capital Contract Payments,5000,557.50,Energise Ltd,151381,09/03/2017,10245663,TC,,,,PI,669,28/02/2017
INSERTED DETAIL,Communities and Homes,Housing Options Team,HOT00,External Legal Costs,0741,742.50,Redacted Personal Data,151418,23/03/2017,10246269,TC,928317510,,928317510,PN,891,16/03/2017
INSERTED DETAIL,Environment and Public Realm,Road Safety,CAD41,Development Activities,0450,1872.00,Child Seat Safety Ltd,151465,30/03/2017,10246417,TC,127392214,7869750,127392214,PI,2246.4,20/03/2017
INSERTED DETAIL,Environment and Public Realm,Street Cleansing,WSC00,Training fees,0011,575.00,IE Training & Consultancy Ltd,151472,09/03/2017,10244715,NT,251492902,10311678,251492902,PI,690,02/02/2017
INSERTED DETAIL,Executive Director Office,Electoral Registration,ERG00,External Printing,0352,2229.74,CFH Docmail Ltd,151481,09/03/2017,10245532,TC,720978223,1716891,720978223,PN,2675.69,24/02/2017
INSERTED DETAIL,Communities and Homes,Woodside Park,TVR00,R&M External Contractors,0100,1309.96,MTS Cleansing Services Ltd,151488,23/03/2017,10246171,TC,445837717,2045340,445837717,PI,1571.95,14/03/2017
INSERTED DETAIL,Capital Housing Revenue Account,Carbon Management Plan (HRA),LCF02,Capital Contract Payments,5000,36646.81,Avonside Renewables,151502,23/03/2017,10245022,CS,639462217,2330586,639462217,PN,43976.17,09/02/2017
INSERTED DETAIL,Corporate Resources,Human Resources Centralised Services,RES31,Recruitment Expenses,0012,2450.00,The Hemming Group,151506,02/03/2017,10245645,TC,342023408,,342023408,PN,2940,28/02/2017
INSERTED DETAIL,Environment and Public Realm,Land Drainage General,LDR00,External Contractor & Operator,0742,3763.00,Floodgate Ltd,151508,02/03/2017,10245421,TC,783234128,4207336,783234128,PI,4515.6,21/02/2017
INSERTED DETAIL,Growth and Investment,Economic Development General,ECD00,Development Activities,0450,3780.00,A Meredith Associates,151513,02/03/2017,10245560,TC,,,,PI,3780,27/02/2017
INSERTED DETAIL,Growth and Investment,The Benn Hall,BHL00,Events Tickets - Zero Rated,1405,1209.00,L'Amore Entertainment,151526,02/03/2017,10245689,TC,,,,PN,1209,28/02/2017
INSERTED DETAIL,Communities and Homes,Broadband & internet,TEL01,Telephone Expenses,0371,7751.94,HighSpeed Office Ltd,151543,23/03/2017,10246100,TC,766384980,3935705,766384980,PN,9302.33,10/03/2017
INSERTED DETAIL,Growth and Investment,Economic Development General,ECD00,Consultancy Costs,0740,2546.28,David Tucker Associates,151545,23/03/2017,10246212,TC,738893081,5305640,738893081,PN,3055.54,15/03/2017
INSERTED DETAIL,Environment and Public Realm,TREE WORKS,WGM01,External Legal Costs,0741,425.00,Redacted Personal Data,151546,23/03/2017,10246259,TC,754321739,,754321739,PN,510,16/03/2017
INSERTED DETAIL,Corporate Resources,Human Resources Centralised Services,RES31,Training fees,0011,3995.00,Belbin Associates,151550,23/03/2017,10246371,TC,493222449,,493222449,PN,4794,20/03/2017
INSERTED DETAIL,Outside portfolio expenditure,Balance Sheet,BS,Revenue Grants,9889,1592.50,Department for Work and Pensions,151555,23/03/2017,10246444,TC,888815554,,888815554,PN,1592.5,21/03/2017
detail,Environment and Public Realm,TREE WORKS,WGM01,External Contractor & Operator,0742,2237.50,Beechwood Trees & Landscapes Ltd,151563,30/03/2017,10246545,TC,775727582,7075877,775727582,PN,2685,23/03/2017
,Growth and Investment,Visitor Centre,VSC00,Purchases for Resale,0305,500.00,Royal Mail,,16/03/2017,42287,,,,,,,
,Communities and Homes,ITC & Support Services,CIS10,Software Maintenance,0374,577.73,Google,,16/03/2017,42287,,,,,,,
,Environment and Public Realm,Domestic Waste Collection,WWC00,Vehicle Running Costs,0201,652.50,DVLA,,16/03/2017,42287,,,,,,,
,Capital Housing Revenue Account,"Communications, Consultation and Information Team",BTR20,Publicity & Marketing,0377,912.92,Facebook,,16/03/2017,42287,,,,,,,
